{"text_format":"1","workbook":"xlsx","n_sheets":23,"sheets":["Cover Page","Contents","Facility Info","Operational Data","Operational Summary","Perf. Form 1","Energy Form 1","Permit Compliance","Improvements","Public Liasion","CO2 N20","Residue Quality ","Water","Air (periodic)","Air (CEMS)","HCl","SO2","NOx","TOC","Particulates","CO 0.5hourly","CO 95% 10 min","NH3"],"not_rendered":{"charts":8,"images":4,"macros":1,"external_links":0,"defined_names":23,"comments":0,"pivot_tables":0},"unopened":[],"bounds":{"document_bytes":16777216,"sheet_cells":100000,"rows_first":2000,"rows_last":500,"rows_between":2000,"halvings":0,"cell_chars":16384,"cell_head_chars":4096},"cells_cut":0,"cells_raw":0,"read":"whole","date_system":"1900"}

{"sheet":"Cover Page","index":0,"n_rows":53,"n_cols":14,"rows_kept":53,"cut":false,"hidden":false,"merged":[[48,2,48,3],[48,6,48,8],[52,2,52,3],[36,1,36,8],[40,2,40,8],[42,2,42,4],[44,2,44,4],[46,2,46,3],[46,6,46,8],[13,13,18,15],[34,1,34,8],[0,3,5,6],[7,1,23,8],[28,1,28,8],[30,1,30,8],[32,1,32,8]]}
[null,null,null,"Add company logo"]
[null,null,null,null,null,null,null,null,null,null,null,null,null,"Version 22.2"]
[]
[]
[]
[]
[]
[null,"Add photo"]
[]
[]
[]
[]
[null,null,null,null,null,null,null,null,null,null,null,null,null,"Notes:"]
[null,null,null,null,null,null,null,null,null,null,null,null,null,"This template may require adjustments by individual operators to meet specific reporting requirements as defined in the site Permit(s)"]
[]
[]
[]
[]
[]
[]
[]
[]
[]
[]
[]
[]
[]
[]
[null,"Annual Performance Report 2022"]
[]
[null,"Permit EPR/NP3739PD/V009"]
[]
[null,"The Coventry and Solihull Waste Disposal Company Limited"]
[]
[null,"CSWDC Ltd"]
[]
[null,"CSWDC Ltd"]
[]
[null,"Year:",2022]
[]
[null,"Address:","Bar Road, Coventry, CV3 4AN"]
[]
[null,"Tel: ","02476507428"]
[]
[null,"Email: ","mick.schilling@cswdc.co.uk"]
[]
[null,"Prepared by:","M Schilling",null,null,"Position:","EH&S Advisor"]
[]
[null,"Approved by:","E Price",null,null,"Position:","C+P Manager"]
[]
[null,"Version:",1]
[]
[null,"Issue Date:","2023-01-30"]

{"sheet":"Contents","index":1,"n_rows":45,"n_cols":11,"rows_kept":45,"cut":false,"hidden":false,"merged":[[44,0,47,9],[37,1,37,6],[38,1,38,6],[39,1,39,6],[40,1,40,6],[41,1,41,6],[42,1,42,6],[36,1,36,6],[22,1,22,6],[23,1,23,6],[24,1,24,6],[27,1,27,6],[28,1,28,6],[29,1,29,6],[30,1,30,6],[31,1,31,6],[32,1,32,6],[35,1,35,6],[21,1,21,6],[9,1,9,6],[10,1,10,6],[11,1,11,6],[12,1,12,6],[14,1,14,6],[15,1,15,6],[16,1,16,6],[17,1,17,6],[18,1,18,6],[19,1,19,6],[20,1,20,6],[13,1,13,6],[4,10,7,14],[8,1,8,6],[3,1,3,6],[4,1,4,6],[5,1,5,6],[6,1,6,6],[7,1,7,6]]}
[{"$f":"+'Cover Page'!$B$29","v":"Annual Performance Report 2022"},null,null,null,{"$f":"+'Cover Page'!$B$33","v":"The Coventry and Solihull Waste Disposal Company Limited"}]
[]
["Contents",null,null,null,null,null,null,null,null,null,"Notes:"]
["Section","Subject",null,null,null,null,null,"Page ",null,null,"Section references and Page nos. to be inserted"]
[null,"Facility Information",null,null,null,null,null,3,null,null,"Sections and Subjects may require adjustment by individual operators to meet specific reporting requirements as defined in the sites Permit(s)"]
[null,"Operational Summary",null,null,null,null,null,4]
[null,"Operational Data",null,null,null,null,null,5]
[null,"Performance Form 1",null,null,null,null,null,8]
[null,"Energy Form 1",null,null,null,null,null,9]
[null,"Permit Compliance",null,null,null,null,null,10]
[null,"Improvements",null,null,null,null,null,11]
[null,"Public Liasion",null,null,null,null,null,12]
[null,"Carbon Dioxide Emissions",null,null,null,null,null,13]
[null,"Residue Quality - Optional",null,null,null,null,null,15]
[null,"Emissions to Water",null,null,null,null,null,16]
[null,"Emissions to Air (periodically monitored)",null,null,null,null,null,17]
[null,"Emissions to Air (continuously monitored)",null,null,null,null,null,18]
[null,"Hydrogen Chloride emissions",null,null,null,null,null,19]
[null,"Sulphur Dioxdie emsissions",null,null,null,null,null,20]
[null,"Oxides of Notrigen emissions",null,null,null,null,null,21]
[null,"Total Organic Carbon emissions",null,null,null,null,null,22]
[null,"Particulate Matter emissions",null,null,null,null,null,23]
[null,"Carbon Monoxide emissions",null,null,null,null,null,24]
[null,"Ammonia emissions",null,null,null,null,null,26]
[]
[]
["Version Control"]
["Section","Information",null,null,null,null,null,"Date"]
[]
[]
[]
[]
[]
[]
["Distribution"]
["Copy","Name, Role",null,null,null,null,null,"No."]
[]
[]
[]
[]
[]
[]
[]
[]
["This report is required under the Industrial Emissions Directive’s Article 55(2) requirements on reporting and public information on waste incineration plants and co-incineration plants, which require the operator to produce an annual report on the functioning and monitoring of the plant and make it available to the public. "]

{"sheet":"Facility Info","index":2,"n_rows":22,"n_cols":11,"rows_kept":22,"cut":false,"hidden":false,"merged":[[4,0,17,8],[21,0,53,8],[4,10,13,13],[21,10,30,13]]}
[{"$f":"+'Cover Page'!$B$29","v":"Annual Performance Report 2022"},null,null,null,{"$f":"+'Cover Page'!$B$33","v":"The Coventry and Solihull Waste Disposal Company Limited"}]
[]
["Plant Description and Design",null,null,null,null,null,null,null,null,null,"Notes:"]
[]
["The Waste to Energy plant, which is located at Bar Road in Coventry, processes Municipal Household waste arising in the City of Coventry and the neighbouring borough of Solihull. Municipal household waste from other nearby local authorities is also processed at the plant. \n\nThe plant is operated by The Coventry and Solihull Waste Disposal Company Ltd.    The main activity at the installation is thermal treatment of municipal waste and recovery of energy, in the form of heat which is converted to electricity for export to the grid. The installation also has the capability to export heat in the form of either High or Low Pressure steam to a district heating scheme operated by Engie UK. A limited amount of hazardous waste, containing less than 1% halogenated organic substances (as chlorine), is also burned with the municipal waste.\n \nThe installation includes waste receipt and storage, steam generation boilers, abatement of the exhaust gas, on-site storage of residues and all systems for controlling and monitoring combustion operation. The steam produced is used to drive 2 steam turbine driven generators.\n\nThe plant design is capable of processing approximately 315,000 tonnes of waste per annum/36 tonnes per hour in three combustion units (12 tonne per unit). The heat produced is used to generate 17.7MW of electricity and up to 16MW heat energy. \n\nRefuse collection vehicles enter the reception hall and deposit their waste into a storage bunker. The material is then loaded by crane into each of the combustion units via feed hoppers from the storage bunker. After entering the combustion chamber via the refuse feed ram the material is allowed to fall onto the grate in a controlled manner. The moving grate mechanisms are used to agitate the waste as it progresses down to the ash discharge. \n \nAs the waste moves along, pre-heated primary air is introduced from beneath the grate enabling the waste to go through a series of drying and burning areas. Secondary air is introduced from above the grate for combustion control.  Auxiliary gas fired burners are located in the combustion chamber both to heat it up on start-up and to maintain the final gas temperature if necessary. The hot gases are maintained at a minimum temperature of 850C for 2 seconds in the combustion chamber before passing to the boiler, economiser and abatement plant. Each combustion unit is equipped with a 3-bank water tube boiler, raising steam at 17 bar and 208C.  Economisers are fitted downstream of each combustion unit to pre-heat the incoming feed water. \n\nCombustion is controlled with the use of an infrared imaging computer system, which uses fuzzy logic systems to control various parameters of the plant, ensuring improved efficiency and emission performance when compared to fully manual control.\n \nEach combustion unit is provided with its own gas cleaning and monitoring equipment. Gas cleaning comprises activated carbon injection, then dry scrubbing with hydrated lime. The gases pass through bag filters to remove particulates prior to discharge to atmosphere via a single 92m stack. NOx control is achieved by Selective Non Catalytic Reduction (SNCR) using ammonium hydroxide injection. \n \nEmissions from the stack are continuously monitored for particulates, carbon monoxide (CO), sulphur dioxide (SO2), hydrogen chloride (HCl), oxygen (O2), nitrogen oxides (NOx) and volatile organic compounds (VOC). \n\nThere is no discharge of process liquids to controlled waters. Uncontaminated surface and roof waters are discharged to the surface water drainage system, via penstock equipped interceptors. All process waste waters are discharged to foul sewer and these are treated at Finham Sewage Treatment Works, which is operated by Severn Trent Water.\n\nBottom ash and metal content from the combustion unit grate is quenched with water. Both fractions are then conveyed to individual concrete storage bunkers prior to removal for reprocessing into aggregates or for recycling back into the steel industry. \nAir Pollution Control Residues (APCR) from the bag filters are collected continuously and stored in an enclosed silo prior to removal from site for disposal. \n\n",null,null,null,null,null,null,null,null,null,"Include summary of plant design, design capacity, no. of combustion lines, electrical and heat capacity and any other general information that descibes the facility, its location and purpose "]
[]
[]
[]
[]
[]
[]
[]
[]
[]
[]
[]
[]
[]
[]
["Summary of Operational Processes and Procedures"]
[]
["The plant consists of three separate combustion units that process up to a maximum of 12 tonnes of waste per hour.\nThere are two steam turbine driven electrical generating sets on the plant which convert the heat energy recovered from the combustion process into electricity. The generating sets are designated as G1 and G2. G1 has a capacity of 12.9MW and G2 a capacity of 4.8 MW. The process energy requirements are taken from the electricity generated and the surplus is exported to the grid. The plant also has the capacity to export heat, in the form of high pressure and low pressure steam.\nThe following table categorises the types and permitted maximum amounts of wastes processed.\n\nEWC Code Description               Amount\n19 12 01 paper and cardboard (confidential waste separately collected)  13%\n03 01 04 sawdust, shavings, cuttings, wood, particle board and veneer containing hazardous substances\n19 12 12 other wastes (including mixtures of materials) from mechanical treatment of wastes other than those mentioned in 19 12 11 \n20 01 01 paper and cardboard \n20 01 08 biodegradable kitchen waste \n20 02 01 biodegradable waste \n20 03 01 mixed municipal waste  84%\n20 03 02 waste from markets \n20 03 07 bulky waste \n20 03 99 municipal waste not otherwise specified \n02 03 04 Wastes unsuitable for consumption or processing \n19 12 08\n20 01 11 Textiles other \n13 07 01* fuel oil and diesel 1%\n13 08 99* wastes not otherwise specified \n15 02 02* absorbents, filter materials (including oil filters not otherwise specified), wiping cloths, protective clothing contaminated by dangerous substances \n15 02 03 absorbents, filter materials, wiping cloths and protective clothing other than those mentioned in 15 02 02 \n16 07 08* waste containing oil \n19 12 10 Combustible waste (refuse derived fuel)   1%\n19 01 99 Wastes not otherwise specified   1%\n18 01 04 \n18 01 06 \n18 01 07 \n18 01 09  Healthcare hazardous waste ",null,null,null,null,null,null,null,null,null,"Include summary of key processes and procedures such as (but not limited to); waste reception, control rooms, grate, bed and bolier, energy & heat  generation, cooling systems, residue management, emission controls, health and safety systems, maintenance"]

{"sheet":"Operational Data","index":3,"n_rows":65,"n_cols":11,"rows_kept":65,"cut":false,"hidden":false,"merged":[[52,0,56,0],[5,10,6,10],[7,10,18,10],[33,1,38,1],[3,1,3,2],[7,1,19,1],[23,1,26,1],[28,1,29,1]]}
[{"$f":"+'Cover Page'!$B$29","v":"Annual Performance Report 2022"},null,null,null,{"$f":"+'Cover Page'!$B$33","v":"The Coventry and Solihull Waste Disposal Company Limited"}]
[]
["Operational Data",null,null,null,null,null,null,null,null,null,"Notes:"]
["Plant Size",315000,null,"tonnes pa",77,"MWth",18,"MWe",null,null,"* - RDF to include SRF "]
["No. of combustion lines",3,null,"No. of Turbines:",null,2,null,null,null,null,"** - CHP plants only"]
[null,null,null,null,null,null,null,null,null,null,"2020 updates include;  heat in MWh, water in Litres, NCV in MJ/kg"]
["Waste types received","Unit","Q1","Q2","Q3","Q4","Year Total","%"]
["Household / Local Authority","tonnes",79166.78,76494.25,68551.399999999994,73298.37,{"$f":"SUM(C8:F8)","v":297510.8},{"$f":"IF(G8>0,G8/$G$18,\"-\")","v":0.99895991062537792},null,null,"Availabiity Definition: 'the availability of a line is to be calculated by the number of hours the line reported Continuously Monitored emission levels to the Regulator through the calendar year divided by the total number of hours in that year. \nThe overall plant availability is calculated as the Mean of all lines in the plant. For clarity this includes periods of Other Than Normal Operating Conditions (OTNOC) and abnormal operation.'  \n\nRationale: The primary function of an Energy from Waste facility is the disposal of waste. It follows therefore that the availability of a plant is determined by the period of time a facility spends undertaking this activity."]
["Commercial & Industrial ",null,null,null,null,null,{"$f":"SUM(C9:F9)","v":0},"-"]
["Hazardous ",null,88.8,77.540000000000006,56.34,87.08,309.76,1.0400893746220878E-3]
["Clinical",null,null,null,null,null,0,"-"]
["Waste wood (biomass) ",null,null,null,null,null,0,"-"]
["Refuse Derived Fuel * - H'hold/LA",null,null,null,null,null,{"$f":"SUM(C13:F13)","v":0},"-"]
["Refuse Derived Fuel *  - C&I",null,null,null,null,null,0,"-"]
["Other [Please specify]",null,null,null,null,null,0,"-"]
["Other [Please specify]"]
["Other [Please specify]"]
["Total waste received",null,{"$f":"SUM(C8:C17)","v":79255.58},{"$f":"SUM(D8:D17)","v":76571.789999999994},{"$f":"SUM(E8:E17)","v":68607.739999999991},{"$f":"SUM(F8:F17)","v":73385.45},{"$f":"SUM(G8:G17)","v":297820.56},1]
["Rejected Waste ",null,null,null,null,null,{"$f":"SUM(C19:F19)","v":0},{"$f":"IF(G19>0,G19/$G$18,\"-\")","v":"-"}]
["Unprocessed waste transferred out",null,null,null,null,null,{"$f":"SUM(C20:F20)","v":0},{"$f":"IF(G20>0,G20/$G$18,\"-\")","v":"-"}]
["Total waste combusted",null,{"$f":"C18-SUM(C19:C20)","v":79255.58},{"$f":"D18-SUM(D19:D20)","v":76571.789999999994},68607.739999999991,73385.45,{"$f":"SUM(C21:F21)","v":297820.56},{"$f":"IF(G21>0,G21/$G$18,\"-\")","v":1}]
[]
["Energy Useage / Export","Unit","Q1","Q2","Q3","Q4","Year Total","KWh/te"]
["Power Generated","MWh",34184,34751,30171,31890,{"$f":"SUM(C24:F24)","v":130996},{"$f":"IF(G24>0,G24*1000/$G$21,\"-\")","v":439.84874650695707}]
["Power Exported",null,28280,28883,24982,26122,{"$f":"SUM(C25:F25)","v":108267},{"$f":"IF(G25>0,G25*1000/$G$21,\"-\")","v":363.53097986250515}]
["Power Used on site",null,5858,5806,5390,5794,{"$f":"SUM(C26:F26)","v":22848},{"$f":"IF(G26>0,G26*1000/$G$21,\"-\")","v":76.717336103323419}]
["Power Imported",null,60.5,13,275,71,419.5,{"$f":"IF(G27>0,G27*1000/$G$21,\"-\")","v":1.4085662856855821}]
["Parasitic Load","%",{"$f":"IF(C24>0,1-C25/(C24+C27),\"-\")","v":0.17417395494166943},{"$f":"IF(D24>0,1-D25/(D24+D27),\"-\")","v":0.16916925555172013},{"$f":"IF(E24>0,1-E25/(E24+E27),\"-\")","v":0.17946528279576957},{"$f":"IF(F24>0,1-F25/(F24+F27),\"-\")","v":0.18269140515002658},{"$f":"IF(G24>0,1-G25/(G24+G27),\"-\")","v":0.17614741031309089}]
["Thermal Energy Produced **","MWh",3451,3733,2675,4778,{"$f":"SUM(C29:F29)","v":14637},{"$f":"IF(G29>0,G29*1000/$G$21,\"-\")","v":49.14704344119157}]
["Thermal Energy Exported **",null,3081,3333,2388,4266,13068,{"$f":"IF(G30>0,G30*1000/$G$21,\"-\")","v":43.878770491869332}]
["R1 value (if applicable)"]
[]
["Waste Disposal & Recovery","Unit","Q1","Q2","Q3","Q4","Year Total","% inputs"]
["APC Residues - produced","tonnes",3041,3111,2738,2956,{"$f":"SUM(C34:F34)","v":11846},{"$f":"IF(G34>0,G34/$G$21,\"-\")","v":3.9775628653710142E-2}]
["IBA - produced",null,10959,12376,10157,9873,43365,{"$f":"IF(G35>0,G35/$G$21,\"-\")","v":0.14560781162992911}]
["Metals recycling",null,2091,2117,1847,1980,{"$f":"SUM(C36:F36)","v":8035},2.6979332790187487E-2]
["Other",null,0,0,0,0,{"$f":"SUM(C37:F37)","v":0},"-"]
["Other",null,0,0,0,0,0,"-"]
["Other",null,0,0,0,0,0,"-"]
[]
["Raw Material Usage","Unit","Q1","Q2","Q3","Q4","Year Total","kg or Ltr /te"]
["Mains Water","ltrs",15019,19201,68853,19055,{"$f":"SUM(C42:F42)","v":122128},{"$f":"IF(G42>0,G42/$G$21,\"-\")","v":0.41007242750466927}]
["Other Water","ltrs",97832,88113,44313,93085,323343,{"$f":"IF(G43>0,G43/$G$21,\"-\")","v":1.0856973742847036}]
["Ammonia","kgs",129.5,276,308,339,1052.5,3.5340071887582239E-3]
["Urea","kgs",0,0,0,0,{"$f":"SUM(C45:F45)","v":0},"-"]
["Activated Carbon","kgs",19.8,21.1,22.5,24.9,88.300000000000011,2.9648725393572565E-4]
["Lime / hydrated lime","kgs",1266,1341,1260,1311,5178,1.7386308050726922E-2]
["Fuel oil","ltrs",6351,8900,9162,9036,33449,0.11231259520833618,null,"The vast majority of this oil useage is for mobile plant at our HWRC"]
["Gas","cf",951300,546400,764000,1634400,3896100,null,null,"Burners are almost always run on gas, not oil"]
["Other",null,0,0,0,0,0]
[]
["Summary ","Line/Unit","Q1","Q2","Q3","Q4","Year Total",null,null,"Hrs in year "]
["Availability of waste combustion by line, hrs",1,1994,1955,2096,2147,{"$f":"SUM(C53:F53)","v":8192},0.93510000000000004,null,8760]
[null,2,1885,2057,1453,1823,7218,0.82399999999999995]
[null,3,2068,2106,2032,1930,8136,0.92900000000000005]
[null,4,null,null,null,null,0,"x %"]
[null,5,null,null,null,null,{"$f":"SUM(C57:F57)","v":0},"x %"]
["Overall Availability, mean avg. of all lines, hrs",null,90.5,93,85,90,{"$f":"AVERAGE(G53:G57)","v":4709.2},0.9]
["Hours of turbine operations, hrs",1,2142,2181,2035,2185,8543,0.97499999999999998]
["Hours of turbine operations, hrs",2,1932,2099,1863,1794,7688,0.878]
["Hours of heat / steam export",null,1932,2099,1863,1794,7688,{"$f":"IF(B61>0,G60/J53,\"n/a\")","v":"n/a"}]
["Net Calorific Value of waste","MJ/kg",10.99,11,11,11,null,"-"]
["Abnormal Events","qty.",1,0,5,0,6,{"$f":"IF(G63>0,\"yes\",\"no\")","v":"yes"}]
["Abnormal operation","hours",0,0,13,null,13,{"$f":"+(G64)/J53","v":1.4840182648401827E-3}]
["Permit Breaches","qty.",0,0,0,0,0,{"$f":"IF(G65>0,\"yes\",\"no\")","v":"no"}]

{"sheet":"Operational Summary","index":4,"n_rows":31,"n_cols":11,"rows_kept":31,"cut":false,"hidden":false,"merged":[[4,0,26,8],[30,0,51,8],[4,10,13,13],[30,10,39,13]]}
[{"$f":"+'Cover Page'!$B$29","v":"Annual Performance Report 2022"},null,null,null,{"$f":"+'Cover Page'!$B$33","v":"The Coventry and Solihull Waste Disposal Company Limited"}]
[]
["Summary of Plant Operations and Maintenance during the reporting year",null,null,null,null,null,null,null,null,null,"Notes:"]
[]
["There were Minor outages as follows - Unit 2 Minor outage February, Unit 1 Minor outage May, Unit 3 Minor outage July, Unit 2 Major outage including a full boiler tube replacement September, Unit 3 Minor outage November.\nThere was a total plant power outage in August/September to undertake specific work requiring a full shutdown.\nA further Nox trial took place in January to check ahead of the BREF and associated changes to ELVs\n16 explosive cleaning visits were undertaken on units 2 and 3 (unit 1 has SPG system).\nEmission monitoring was undertaken in March and August by Element.\nThe cooling towers were serviced, including clean and chlorination in May and November.\nThere were statutory inspections on all units in the year.\nA full set of new CEMs equipment was installed in December to provide full redundancy in the event of equipment faults.",null,null,null,null,null,null,null,null,null,"Include summary of key operational and/or mainteanance activity undertaken in the year, such as any major component upgrades and/or replacements "]
[]
[]
[]
[]
[]
[]
[]
[]
[]
[]
[]
[]
[]
[]
[]
[]
[]
[]
[]
[]
[]
[]
[]
["Summary of Residue Handling for the reporting year"]
[]
["Incinerator bottom ash is separated and stored on site for collection by aggregate HGVs, which as loaded by crane before transporting the ash to a processing site which is operated by a third party. All metals metals are left mixed with the IBA and removed from site for processing by a third party (Johnsons Aggregates, Derby), and the metal is now separated by them on their premises.\n\nAPCr is conveyed by the FGT system into storage silos. From there it is deposited into tankers (Lomas) for transortation to a third party processor (Augean).",null,null,null,null,null,null,null,null,null,"Include in here a summary of residue handling regimes and destinations "]

{"sheet":"Perf. Form 1","index":5,"n_rows":54,"n_cols":12,"rows_kept":54,"cut":false,"hidden":false,"merged":[[47,0,47,1],[49,0,49,9],[50,0,51,9],[38,0,38,9],[39,0,40,9],[43,0,43,1],[43,2,43,9],[45,0,45,1],[46,0,46,1],[36,0,36,3],[36,4,36,5],[36,7,36,8],[37,0,37,3],[37,4,37,5],[37,7,37,8],[34,0,34,3],[34,4,34,5],[34,7,34,8],[35,0,35,3],[35,4,35,5],[35,7,35,8],[31,0,31,3],[31,7,31,8],[32,0,32,3],[32,4,32,5],[32,7,32,8],[33,0,33,3],[33,4,33,5],[33,7,33,8],[23,0,23,3],[23,4,23,5],[23,6,23,7],[23,8,23,9],[25,0,25,9],[26,0,28,9],[21,0,21,1],[21,2,21,3],[21,4,21,5],[21,6,21,7],[21,8,21,9],[22,0,22,3],[22,4,22,5],[22,6,22,7],[22,8,22,9],[19,0,19,1],[19,2,19,3],[19,4,19,5],[19,6,19,7],[19,8,19,9],[20,0,20,1],[20,2,20,3],[20,4,20,5],[20,6,20,7],[20,8,20,9],[17,0,17,1],[17,2,17,3],[17,4,17,5],[17,6,17,7],[17,8,17,9],[18,0,18,1],[18,2,18,3],[18,4,18,5],[18,6,18,7],[18,8,18,9],[15,0,15,1],[15,2,15,3],[15,4,15,5],[15,6,15,7],[15,8,15,9],[16,0,16,9],[13,0,13,1],[13,2,13,3],[13,4,13,5],[13,6,13,7],[13,8,13,9],[14,0,14,3],[14,4,14,5],[14,6,14,7],[14,8,14,9],[11,0,11,1],[11,2,11,3],[11,4,11,5],[11,6,11,7],[11,8,11,9],[12,0,12,1],[12,2,12,3],[12,4,12,5],[12,6,12,7],[12,8,12,9],[9,0,9,9],[10,0,10,1],[10,2,10,3],[10,4,10,5],[10,6,10,7],[10,8,10,9],[2,0,2,4],[2,6,2,8],[3,1,3,4],[5,3,5,4],[5,6,5,7],[8,0,8,1],[8,2,8,3],[8,4,8,5],[8,6,8,7],[8,8,8,9]]}
[{"$f":"+'Cover Page'!C39","v":2022}," Annual Reporting Performance Form 1"]
[]
[{"$f":"+'Cover Page'!B31","v":"Permit EPR/NP3739PD/V009"},null,null,null,null,"Operator: ","CSWDC Ltd"]
["Facility:",{"$f":"+'Cover Page'!B33:I33","v":"The Coventry and Solihull Waste Disposal Company Limited"},null,null,null,"Form:","Performance 1"]
[]
["Reporting  Period from: ",null,null,"2022-01-01",null,"to:","2022-12-31"]
[]
[{"$f":"+A1","v":2022},"Annual Reporting of Waste Disposal and Recovery"]
["Waste Description",null,"Disposal Route(s)",null,"Disposal Tonnes",null,"Recovery Tonnes",null,"% / tonne of waste incinerated"]
["1) Hazardous Wastes"]
["APC Residues",null,"pretreatment and landfill",null,11846,null,0,null,{"$f":"IF((E11+G11)>0,(E11+G11)/'Operational Data'!$G$21, \"-\")","v":3.9775628653710142E-2}]
["IBA",null,"n/a",null,0,null,0,null,{"$f":"IF((E12+G12)>0,(E12+G12)/'Operational Data'!$G$21, \"-\")","v":"-"}]
[null,null,null,null,null,null,null,null,{"$f":"IF((E13+G13)>0,(E13+G13)/'Operational Data'!$G$21, \"-\")","v":"-"}]
[null,null,null,null,null,null,null,null,{"$f":"IF((E14+G14)>0,(E14+G14)/'Operational Data'!$G$21, \"-\")","v":"-"}]
["Total Hazardous Waste",null,null,null,{"$f":"SUM(E11:F14)","v":11846},null,{"$f":"SUM(G11:H14)","v":0},null,{"$f":"IF((E15+G15)>0,(E15+G15)/'Operational Data'!$G$21, \"-\")","v":3.9775628653710142E-2}]
[]
["2) Non-Hazardous Wastes"]
["IBA",null,"Recovery",null,0,null,43365,null,{"$f":"IF((E18+G18)>0,(E18+G18)/'Operational Data'!$G$21, \"-\")","v":0.14560781162992911}]
["Ferrous Metal",null,"Recovery",null,0,null,8035,null,{"$f":"IF((E19+G19)>0,(E19+G19)/'Operational Data'!$G$21, \"-\")","v":2.6979332790187487E-2}]
["Process Water",null,"Disposal to foul sewer",null,105726,null,0,null,{"$f":"IF((E20+G20)>0,(E20+G20)/'Operational Data'!$G$21, \"-\")","v":0.3549989967113083}]
[null,null,null,null,null,null,null,null,{"$f":"IF((E21+G21)>0,(E21+G21)/'Operational Data'!$G$21, \"-\")","v":"-"}]
[null,null,null,null,null,null,null,null,{"$f":"IF((E22+G22)>0,(E22+G22)/'Operational Data'!$G$21, \"-\")","v":"-"}]
["Total Non-Hazardous Waste",null,null,null,{"$f":"SUM(E18:F22)","v":105726},null,{"$f":"SUM(G18:H22)","v":51400},null,{"$f":"IF((E23+G23)>0,(E23+G23)/'Operational Data'!$G$21, \"-\")","v":0.52758614113142488}]
["TOTAL WASTE",null,null,null,{"$f":"+E23+E15","v":117572},null,{"$f":"+G23+G15","v":51400},null,{"$f":"IF((E24+G24)>0,(E24+G24)/'Operational Data'!$G$21, \"-\")","v":0.56736176978513508}]
[]
["Operator’s comments :"]
[]
[]
[]
[]
[{"$f":"+A1","v":2022},"Annual Reporting of Water and Other Raw Material Usage"]
["Raw Material",null,null,null,"Usage",null,"Unit","Specific Useage",null,"Unit"]
["Mains Water",null,null,null,{"$f":"+'Operational Data'!G42","v":122128},null,"m3",{"$f":"IF(E33>0,E33/'Operational Data'!$G$21,\"-\")","v":0.41007242750466927},null,"m3/te"]
["Total Water",null,null,null,{"$f":"+'Operational Data'!G43+'Operational Data'!G42","v":445471},null,"m3",{"$f":"IF(E34>0,E34/'Operational Data'!$G$21,\"-\")","v":1.4957698017893728},null,"m3/te"]
["Urea / Ammonia",null,null,null,{"$f":"+'Operational Data'!G44","v":1052.5},null,"kg",{"$f":"IF(E35>0,E35/'Operational Data'!$G$21,\"-\")","v":3.5340071887582239E-3},null,"kg/te"]
["Activated Carbon",null,null,null,{"$f":"+'Operational Data'!G46","v":88.300000000000011},null,"kg",{"$f":"IF(E36>0,E36/'Operational Data'!$G$21,\"-\")","v":2.9648725393572565E-4},null,"kg/te"]
["Lime / hydrated lime / Sodium Bicarb.",null,null,null,{"$f":"+'Operational Data'!G47","v":5178},null,"kg",{"$f":"IF(E37>0,E37/'Operational Data'!$G$21,\"-\")","v":1.7386308050726922E-2},null,"kg/te"]
[]
["Operator’s comments :"]
[]
[]
[]
[{"$f":"+A31","v":2022},"Annual Reporting of other performance indicators "]
["Parameter",null,"Results by Line"]
[null,null,"A1","A2","A3","A4","A5",null,"Turbine 1","Turbine 2"]
["Operating hours for the year, hours",null,8191,7218,8135,null,null,null,{"$f":"+'Operational Data'!G59","v":8543},{"$f":"+'Operational Data'!G60","v":7688}]
["Number of periods of abnormal operation, qty.",null,4,0,2,null,null,null,0,0,null,"One event affected both lines A1 and A3"]
["Cumulative hours of abnormal operation for this year, hours",null,8.33,0,4.5,null,null,null,0,0]
[]
["Operator’s comments :"]
[]
[]
[]
["Signed: ",null,null,null,null,null,"Date:","2023-01-30"]

{"sheet":"Energy Form 1","index":6,"n_rows":29,"n_cols":8,"rows_kept":29,"cut":false,"hidden":false,"merged":[[15,0,15,2],[15,3,15,4],[15,6,15,8],[17,0,17,8],[18,0,24,8],[13,0,13,2],[13,3,13,4],[13,6,13,8],[14,0,14,2],[14,3,14,4],[14,6,14,8],[11,0,11,2],[11,3,11,4],[11,6,11,8],[12,0,12,2],[12,3,12,4],[12,6,12,8],[9,0,9,2],[9,3,9,4],[9,6,9,8],[10,0,10,2],[10,3,10,4],[10,6,10,8],[2,6,2,8],[4,1,4,4],[6,3,6,4],[6,6,6,7],[8,0,8,2],[8,3,8,4],[8,6,8,8]]}
[{"$f":"+'Cover Page'!C39","v":2022}," Annual Reporting of Energy Usage/Export"]
[]
[{"$f":"+'Cover Page'!B31","v":"Permit EPR/NP3739PD/V009"},null,null,null,null,"Operator: ","CSWDC Ltd"]
[]
["Facility:",{"$f":"+'Cover Page'!B33:I33","v":"The Coventry and Solihull Waste Disposal Company Limited"},null,null,null,"Form:","Energy 1"]
[]
["Reporting  Period from: ",null,null,{"$f":"+'Perf. Form 1'!D6:E6","v":"2022-01-01"},null,"to:",{"$f":"+'Perf. Form 1'!G6:H6","v":"2022-12-31"}]
[]
["Energy Source",null,null,"Energy Usage",null,"Unit","Specific Useage (KWh/tonne incinerated"]
["Electricity Produced",null,null,{"$f":"+'Operational Data'!G24","v":130996},null,"MWh",{"$f":"+'Operational Data'!H24","v":439.84874650695707}]
["Electricity Imported   ",null,null,{"$f":"+'Operational Data'!G27","v":419.5},null,"MWh",{"$f":"+'Operational Data'!H27","v":1.4085662856855821}]
["Electricity Exported",null,null,{"$f":"+'Operational Data'!G25","v":108267},null,"MWh",{"$f":"+'Operational Data'!H25","v":363.53097986250515}]
["Gas Oil",null,null,null,null,"tonnes"]
["Steam/hot water exported",null,null,{"$f":"+'Operational Data'!G30","v":13068},null,"GWh",{"$f":"+'Operational Data'!H30","v":43.878770491869332}]
[]
[]
[]
["Operator’s comments :"]
["Vast majority of gas oil used for ioperating mobile plant at the HWRC and running maintenance plant during outages"]
[]
[]
[]
[]
[]
[]
[]
[]
[]
["Signed: ",null,null,null,null,null,"Date:","2023-01-30"]

{"sheet":"Permit Compliance","index":7,"n_rows":34,"n_cols":12,"rows_kept":34,"cut":false,"hidden":false,"merged":[[26,0,26,10],[18,0,18,10],[31,1,31,3],[31,4,31,6],[31,7,31,9],[27,1,27,3],[27,4,27,6],[27,7,27,9],[28,1,28,3],[28,4,28,6],[28,7,28,9],[23,1,23,3],[23,4,23,6],[23,7,23,9],[24,1,24,3],[24,4,24,6],[32,1,32,3],[32,4,32,6],[32,7,32,9],[29,1,29,3],[29,4,29,6],[29,7,29,9],[30,1,30,3],[30,4,30,6],[30,7,30,9],[24,7,24,9],[21,1,21,3],[21,4,21,6],[21,7,21,9],[22,1,22,3],[22,4,22,6],[22,7,22,9],[19,1,19,3],[19,4,19,6],[19,7,19,9],[20,1,20,3],[20,4,20,6],[20,7,20,9],[16,2,16,4],[16,5,16,8],[15,2,15,4],[15,5,15,8],[16,0,16,1],[13,5,13,8],[14,0,14,1],[14,2,14,4],[14,5,14,8],[15,0,15,1],[7,0,7,1],[7,2,7,8],[8,0,8,1],[8,2,8,4],[8,5,8,8],[8,11,17,14],[33,4,33,8],[9,0,9,1],[9,2,9,4],[9,5,9,8],[10,0,10,1],[10,2,10,4],[10,5,10,8],[11,0,11,1],[11,2,11,4],[11,5,11,8],[12,0,12,1],[12,2,12,4],[12,5,12,8],[13,0,13,1],[13,2,13,4]]}
[{"$f":"+'Cover Page'!$B$29","v":"Annual Performance Report 2022"},null,null,null,{"$f":"+'Cover Page'!$B$33","v":"The Coventry and Solihull Waste Disposal Company Limited"}]
[]
["Summary of Permit Compliance"]
[]
["Compliance with permit limits for continuously monitored pollutants"]
[]
["The plant met its emission limits as shown in the table below:"]
["Substance",null,"Percentage time compliant during operation",null,null,null,null,null,null,null,null,"Notes:"]
[null,null,"Half-hourly limit",null,null,"Daily limit",null,null,null,null,null,"Report to 2 decimal places, i.e. xx.xx%\n\nPlease provide a brief summary of each notification or non-compliance in the table (rather than just referring to notifications that were sent to the Regulator).  \n\n"]
["Particulates",null,1,null,null,1]
["Oxides of nitrogen",null,1,null,null,1]
["Sulphur dioxide",null,1,null,null,1]
["Carbon monoxide",null,"100% 95% of 10-min averages",null,null,1]
["Total organic carbon",null,1,null,null,1]
["Hydrogen chloride",null,1,null,null,1]
["Hydrogen fluoride",null,1,null,null,1]
[]
[]
["Summary of any notifications or non-compliances under the permit"]
["Date","Summary of notification or non-compliance [including Line/Reference]",null,null,"Reason ",null,null,"Measures taken to prevent reoccurrence"]
["2022-02-27","By-pass dampler opened due to a fault",null,null,"Air line failed",null,null,"Routine replacement on PPM"]
["2022-07-01","CEMs lost",null,null,"Stand-by switching failed",null,null,"Fault rectified by service tech"]
["2022-08-31","CEMs lost FID",null,null,"Stand-by instrument failed whilst duty was out of service",null,null,"Taken off line. Both instruments repaired"]
["2022-09-03","By-pass damper opened due to a fault",null,null,"Damper seal failure",null,null,"Taken off line for seal replacement"]
["2022-10-09","CEMs lost",null,null,"CEMs comms failure",null,null,"Burned out coil"]
[]
["Summary of any complaints received and actions to taken to resolve them."]
["Date","Summary of complaint [including Line/Reference]",null,null,"Reason *",null,null,"Measures taken to prevent reoccurrence"]
["2022-04-26","Odour complaint from neighbour. Not thought to be process related from the description, but was acted upon as a precaution",null,null,"Possible escape of waste odour, though other resident uses styrene solvents in garage for paintwork",null,null,"All odour controls checked as a precaution"]
[]
[]
[]
[]
[null,null,null,null,"* including whether substantiated by the operator or the EA"]

{"sheet":"Improvements","index":8,"n_rows":39,"n_cols":5,"rows_kept":39,"cut":false,"hidden":false,"merged":[[37,0,37,8],[38,0,47,8],[4,0,4,8],[5,0,13,8],[15,0,15,8],[16,0,24,8],[26,0,26,8],[27,0,35,8]]}
[{"$f":"+'Cover Page'!$B$29","v":"Annual Performance Report 2022"},null,null,null,{"$f":"+'Cover Page'!$B$33","v":"The Coventry and Solihull Waste Disposal Company Limited"}]
[]
["Summary of Plant Improvements"]
[]
["Summary of any efficiency improvements that have been completed within the year."]
["Improve plant identification, labelling and drawings\nFormalise a random testing section of the Drugs & Alcohol policy, to include staff and contractors. Update the induction film to suit the changes in the policy \nCrane bay fire escape improvements - modernise and maintain a user friendly hatched escape system, existing is poorly maintained and very difficult to use\nImprove water meter access to enable reading of values - options of altering meter positions, improving access covers, etc.\nReview and improve the office energy efficiency policy \nReview and improve the paper reduction policy in order to move towards a paperless office\nImprove CEMs redundancy by installing a complete back up in another location on the plant as per insurers recommendation\n"]
[]
[]
[]
[]
[]
[]
[]
[]
[]
["Summary of any permit improvement conditions that have been completed within the year and the resulting environmental benefits."]
["Review and improve the office energy efficiency policy \nReview and improve the paper reduction policy in order to move towards a paperless office\nImprove CEMs redundancy by installing a complete back up in another location on the plant as per insurers recommendation"]
[]
[]
[]
[]
[]
[]
[]
[]
[]
["Summary of any changes to the plant or operating techniques which required a variation to the permit and a summary of the resulting environmental impact."]
["N/A"]
[]
[]
[]
[]
[]
[]
[]
[]
[]
["Summary of any other improvements made to the plant or planned to be made and a summary of the resulting environmental benefits."]
["N/A"]

{"sheet":"Public Liasion","index":9,"n_rows":29,"n_cols":5,"rows_kept":29,"cut":false,"hidden":false,"merged":[[23,0,24,1],[23,2,24,8],[25,0,26,1],[25,2,26,8],[28,0,28,8],[17,0,18,1],[17,2,18,8],[19,0,20,1],[19,2,20,8],[21,0,22,1],[21,2,22,8],[16,0,16,1],[16,2,16,8],[5,0,5,1],[5,2,5,8],[6,0,7,1],[6,2,7,8],[8,0,9,1],[8,2,9,8],[10,0,11,1],[10,2,11,8],[12,0,13,1],[12,2,13,8],[15,0,15,8]]}
[{"$f":"+'Cover Page'!$B$29","v":"Annual Performance Report 2022"},null,null,null,{"$f":"+'Cover Page'!$B$33","v":"The Coventry and Solihull Waste Disposal Company Limited"}]
[]
["Details of Public & Stakeholder Liasion"]
[]
["Summary of events held during the reporting year."]
["Date",null,"Description"]
[null,null,"No site visits for educational or informative purposes in the year. Since COVID19 there have not been any enquiries at all"]
[]
[]
[]
[]
[]
[]
[]
[]
["List of events planned for next year"]
["Date",null,"Description"]
[null,null,"Hopefully interest will grow back to past levels and educational visits can recommence"]
[]
[]
[]
[]
[]
[]
[]
[]
[]
[]
["If you wish to be involved in the public liasion programme, please contact info@cswdc.co.uk"]

{"sheet":"CO2 N20","index":10,"n_rows":23,"n_cols":7,"rows_kept":23,"cut":false,"hidden":false,"merged":[[19,1,19,2],[22,0,23,2],[4,0,4,2],[8,1,8,2],[10,0,10,2],[12,1,12,2],[15,0,15,2],[17,1,17,2]]}
[{"$f":"+'Cover Page'!$B$29","v":"Annual Performance Report 2022"},null,{"$f":"+'Cover Page'!$B$33","v":"The Coventry and Solihull Waste Disposal Company Limited"}]
[]
["Carbon dioxide emissions and biogenic content of waste inputs",null,null,null,"Notes:"]
[]
["Carbon dioxide emissions (all types of plant)"]
["Annual mass of carbon dioxide released","x tonnes ",240065]
["Annual mass of carbon dioxide released per tonne of waste burned","x tonnes ",{"$f":"SUM(C6/'Operational Data'!G21)","v":0.80607262305866323}]
["Annual mass of carbon dioxide released per MWh of energy generated","x tonnes ",{"$f":"SUM(C6/'Operational Data'!G24)","v":1.8326132095636507}]
["Description of how annual carbon dioxide mass emission has been calculated","Where available, data from CO2 CEMS should be used; otherwise, a suitable emissions factor should be used based on the tonnage of waste burned e.g.0.992 tCO2/t waste as per Tolvik report 2021, or other justified emissions factor  - refer to adjacent Environment Agency guidance note or updated version for example descriptive text."]
[]
["Nitrous oxide emissions (only plants which use ammonia or urea to abate NOx emissions)",null,null,null,"equiv factor",null,"result N20 as CO2 equiv"]
["Total annual mass emissions of nitrous oxide","x tonnes ",32.6,null,298,null,{"$f":"SUM(C12*E12)","v":9714.8000000000011}]
["Description of how annual nitrous oxide mass emission has been calculated","Where available, data from N2O CEMS or periodic monitoring data should be used; otherwise, a suitable emissions factor should be used based on the tonnage of waste burned e.g. 0.0981 kgN20/t waste as per 2021 Pollution Inventory data for plants with urea-based SNCR - refer to adjacent Environment Agency guidance note or updated version for example descriptive text."]
["Total annual carbon dioxide and nitrous oxide emissions as carbon dioxide equivalent (whereby 1 t nitrous oxide is equivalent to 298 t carbon dioxide)","x tonnes CO2e",{"$f":"SUM(C6,G12)","v":249779.8}]
[]
["Biogenic fraction of the waste and biogenic CO2 emissions (only plants burning residual municipal waste, refuse derived fuel or solid recovered fuel)"]
["Yearly average biogenic percentage of the waste by mass","x %",65]
["Description of how biogenic percentage has been calculated","Where available, data from waste sampling should be used; otherwise, an estimated figure with justification can be used, or a figure assumed on the basis of a national average e.g. 2017 WRAP data for residual waste of 51.8% biogenic energy content - refer to adjacent Environment Agency guidance note or updated version for example descriptive text."]
["Percentage of total carbon dioxide emissions arising from biogenic waste","x %",65]
["Description of how percentage biogenic carbon dioxide emissions have been calculated","Examples include direct measurement via C14 method, BIOMA software or other method based on measured or assumed waste biogenic content - refer to adjacent Environment Agency guidance note or updated version for example descriptive text."]
[]
["Comments:"]
["C14 biogenic measurement used"]

{"sheet":"Residue Quality ","index":11,"n_rows":35,"n_cols":6,"rows_kept":35,"cut":false,"hidden":false,"merged":[[35,0,40,6],[32,3,32,4],[34,0,34,6],[27,0,28,1],[29,0,29,1],[30,0,30,1],[31,0,31,1],[32,0,32,1],[29,3,29,4],[30,3,30,4],[29,5,29,6],[30,5,30,6],[31,5,31,6],[32,5,32,6],[20,0,21,1],[20,2,21,6],[22,0,23,1],[22,2,23,6],[31,3,31,4],[27,2,28,2],[28,3,28,4],[28,5,28,6],[27,3,27,6],[26,0,26,6],[5,0,6,6],[7,0,8,6],[9,0,10,6],[14,0,15,1],[14,2,15,6],[16,0,17,1],[16,2,17,6],[18,0,19,1],[18,2,19,6],[12,0,12,6],[13,0,13,1],[13,2,13,6]]}
[{"$f":"+'Cover Page'!$B$29","v":"Annual Performance Report 2022"},null,null,null,{"$f":"+'Cover Page'!$B$33","v":"The Coventry and Solihull Waste Disposal Company Limited"}]
[]
["Residue Quality Monitoring Requirements"]
[]
["Summary of monitoring undertaken and compliance"]
["Monthly sampling and analysis of IBA, quarterly sampling and analysis of APCr with all required measures included"]
[]
[]
[]
[]
[]
[]
["Commentary on any specific events"]
["Date & Event",null,"Description"]
[]
[]
[]
[]
[]
[]
[]
[]
[]
[]
[]
[]
["Residue Quality Monitoring Results"]
["Parameter (unit) ",null,"Limit","Normal Operation "]
[null,null,null,"Bottom ash  ",null,"APC Residues"]
["Loss on Ignition (average %)",null,"<5%",2.0499999999999998]
["Total Organic Carbon (average %)",null,"<3%","N/a"]
["No. of Assessments Undertaken",null,"---",4]
["No. of Hazardous Results",null,"---",0]
[]
["Comments :"]

{"sheet":"Water","index":12,"n_rows":24,"n_cols":9,"rows_kept":24,"cut":false,"hidden":false,"merged":[[29,0,29,2],[29,3,29,4],[26,0,26,2],[26,3,26,4],[27,0,27,2],[27,3,27,4],[28,0,28,2],[28,3,28,4],[23,0,23,2],[23,3,23,4],[24,0,24,2],[24,3,24,4],[25,0,25,2],[25,3,25,4],[21,0,21,8],[22,0,22,2],[22,3,22,4],[14,0,15,1],[14,2,15,8],[16,0,17,1],[16,2,17,8],[18,0,19,1],[18,2,19,8],[5,0,6,8],[7,0,8,8],[9,0,10,8],[12,0,12,8],[13,0,13,1],[13,2,13,8]]}
[{"$f":"+'Cover Page'!$B$29","v":"Annual Performance Report 2022"},null,null,null,{"$f":"+'Cover Page'!$B$33","v":"The Coventry and Solihull Waste Disposal Company Limited"}]
[]
["Emissions to Water"]
[]
["Summary of monitoring undertaken and compliance"]
["Weekly ph measurement taken of ash quench effluent before dispsoal to sewer by water treament contractors"]
[]
["Effluent qualities monitored by STW"]
[]
[]
[]
[]
["Commentary on any specific events"]
["Date & Event",null,"Description"]
["2022-11-08",null,"High value recorded of 11.4 following water wash outage, effluent tank drained and cleaned, accumulated slurry removed and dispoed of safely, levels returned to normal at next monitoring check"]
[]
[]
[]
[]
[]
[]
["Emissions to Water / Sewer"]
["Parameter",null,null,"Monitoring Frequency",null,"Limit","Target","Max.","Average"]
["PH",null,null,"weekly",null,12,9,11.4,9.3000000000000007]

{"sheet":"Air (periodic)","index":13,"n_rows":39,"n_cols":13,"rows_kept":39,"cut":false,"hidden":false,"merged":[[18,3,18,4],[27,3,27,4],[33,3,33,4],[19,3,19,4],[20,3,20,4],[21,3,21,4],[22,3,22,4],[23,3,23,4],[24,3,24,4],[31,3,31,4],[25,3,25,4],[26,3,26,4],[28,3,28,4],[13,3,13,4],[14,3,14,4],[15,3,15,4],[16,3,16,4],[17,3,17,4],[38,0,38,9],[19,0,19,1],[20,0,20,1],[21,0,21,1],[34,3,34,4],[35,3,35,4],[33,0,33,1],[34,0,34,1],[35,0,35,1],[36,0,36,1],[24,0,24,1],[32,3,32,4],[39,0,40,9],[25,0,25,1],[26,0,26,1],[22,0,22,1],[23,0,23,1],[37,0,37,1],[27,0,27,1],[28,0,28,1],[29,0,29,1],[30,0,30,1],[31,0,31,1],[32,0,32,1],[37,3,37,4],[29,3,29,4],[30,3,30,4],[36,3,36,4],[16,0,16,1],[17,0,17,1],[18,0,18,1],[13,0,13,1],[14,0,14,1],[15,0,15,1],[12,0,12,1],[11,3,11,4],[12,3,12,4],[9,0,10,1],[9,5,9,9],[9,3,10,4],[9,2,10,2],[5,12,8,15],[9,12,11,15],[8,0,8,9],[5,0,6,9],[11,0,11,1]]}
[{"$f":"+'Cover Page'!$B$29","v":"Annual Performance Report 2022"},null,null,null,{"$f":"+'Cover Page'!$B$33","v":"The Coventry and Solihull Waste Disposal Company Limited"}]
[]
["Emissions to Air (periodically monitored)"]
[]
["Summary of monitoring undertaken, standards used and compliance",null,null,null,null,null,null,null,null,null,null,null,"Notes:"]
[null,null,null,null,null,null,null,null,null,null,null,null,"Template may require adjustment for any bespoke monitoring requirements of permit. "]
[]
[]
["Results of emissions to air that are periodically monitored"]
["Substance",null,"Ref. Period","Emission Limit Value",null,"Average",null,null,null,null,null,null,"User to add additional tables as necessary, depending on whether quarterly or bi-annual reporting is required for the compliance year"]
[null,null,null,null,null,"A1","A2","A3","A4","A5"]
["Hydrogen fluoride",null,"1 hr","2 mg/m3",null,0.55500000000000005,0.61499999999999999,0.52500000000000002]
["Cd and Th and their compounds",null,"6-8hrs","0.05 mg/m3",null,1E-3,1E-3,1.5E-3]
["Hg and its compounds",null,"6-8hrs","0.05 mg/m3",null,3.5E-4,3.5E-4,1E-3]
["Sb, As, Pb, Cr, Co, Cu, Mn, Ni, V and their compounds",null,"6-8hrs","0.5 mg/m3",null,2.4500000000000001E-2,2.1499999999999998E-2,2.2499999999999999E-2]
["Dioxins & Furans (I-TEQ)",null,"6-8hrs","0.1 ng/m3",null,2.3699999999999999E-2,1.315E-2,1.0849999999999999E-2]
["PCBs (WHO-TEQ Humans / Mammals)",null,"6-8hrs","None set ng/m3",null,2.3534999999999997E-3,6.4199999999999999E-4,9.9249999999999989E-4]
["PCBs (WHO-TEQ Fish)",null,"6-8hrs","None set ng/m3",null,1.015E-4,3.0500000000000003E-5,4.35E-5]
["PCBs (WHO-TEQ Birds)",null,"6-8hrs","None set ng/m3",null,3.5279999999999999E-3,1.253E-3,1.5965E-3]
["Dioxins & Furans (WHO-TEQ Humans / Mammals)",null,"6-8hrs","None set ng/m3",null,2.4199999999999999E-2,1.315E-2,1.1300000000000001E-2]
["Dioxins & Furans (WHO-TEQ Fish)",null,"6-8hrs","None set ng/m3",null,2.7749999999999997E-2,1.2999999999999999E-2,1.2699999999999999E-2]
["Dioxins & Furans (WHO-TEQ Birds)",null,"6-8hrs","None set ng/m3",null,4.1099999999999998E-2,1.7100000000000001E-2,1.8200000000000001E-2]
["Anthanthrene",null,"6-8hrs","None set µg/m3",null,4.3499999999999997E-3,1.8500000000000001E-3,4.9500000000000004E-3]
["Benzo(a)anthracene",null,"6-8hrs","None set µg/m3",null,5.0000000000000001E-3,1.8500000000000001E-3,3.5000000000000001E-3]
["Benzo(a)pyrene",null,"6-8hrs","None set µg/m3",null,1.8500000000000001E-3,1.8500000000000001E-3,1.8500000000000001E-3]
["Benzo(b)fluoranthene",null,"6-8hrs","None set µg/m3",null,1.3999999999999999E-2,2.0999999999999999E-3,3.3500000000000001E-3]
["Benzo(b)naptho(2,1-d) thiophene",null,"6-8hrs","None set µg/m3",null,2.5000000000000001E-3,3.4499999999999999E-3,1.8500000000000001E-3]
["Benzo(c)phenanthrene",null,"6-8hrs","None set µg/m3",null,9.2999999999999992E-3,1.8500000000000001E-3,2.1999999999999997E-3]
["Benzo(ghi)perylene",null,"6-8hrs","None set µg/m3",null,2.8500000000000001E-3,1.8500000000000001E-3,4.0499999999999998E-3]
["Benzo(k)fluoranthene",null,"6-8hrs","None set µg/m3",null,4.7499999999999999E-3,1.8500000000000001E-3,1.8500000000000001E-3]
["Cholanthrene",null,"6-8hrs","None set µg/m3",null,1.8500000000000001E-3,1.8500000000000001E-3,1.8500000000000001E-3]
["Chrysene",null,"6-8hrs","None set µg/m3",null,4.3999999999999997E-2,4.2500000000000003E-3,6.4999999999999997E-3]
["Cyclopenta(cd)pyrene",null,"6-8hrs","None set µg/m3",null,1.8500000000000001E-3,1.8500000000000001E-3,2.2599999999999999E-2]
["Dibenzo(ai)pyrene",null,"6-8hrs","None set µg/m3",null,1.8500000000000001E-3,1.8500000000000001E-3,1.8500000000000001E-3]
["Dibenzo(ah)anthracene",null,"6-8hrs","None set µg/m3",null,1.8500000000000001E-3,1.8500000000000001E-3,1.8500000000000001E-3]
["Fluoranthene",null,"6-8hrs","None set µg/m3",null,3.7400000000000003E-2,4.725E-2,4.7350000000000003E-2]
["Indeno(123-cd) pyrene",null,"6-8hrs","None set µg/m3",null,2.7499999999999998E-3,1.8500000000000001E-3,2.3E-3]
["Naphthalene",null,"6-8hrs","None set µg/m3",null,0.91799999999999993,0.12245,0.11610000000000001]
["Comments :"]

{"sheet":"Air (CEMS)","index":14,"n_rows":30,"n_cols":16,"rows_kept":30,"cut":false,"hidden":false,"merged":[[27,0,27,12],[29,0,30,12],[13,0,14,0],[5,0,6,12],[7,0,8,12],[10,0,10,12],[11,0,12,0],[11,2,12,2],[11,1,12,1],[11,3,11,4],[11,5,11,6],[11,7,11,8],[11,9,11,10],[11,11,11,12]]}
[{"$f":"+'Cover Page'!$B$29","v":"Annual Performance Report 2022"},null,null,null,null,null,null,null,{"$f":"+'Cover Page'!$B$33","v":"The Coventry and Solihull Waste Disposal Company Limited"}]
[]
["Emissions to Air (continously monitored)"]
[null,null,null,null,null,null,null,null,null,null,null,null,null,null,null,"Notes:"]
["Summary of monitoring undertaken, standards used and compliance",null,null,null,null,null,null,null,null,null,null,null,null,null,null,"Template may require adjustment for any bespoke monitoring requirements of permit"]
["CEMs, duty for each line plus 1 stand-by CEMs. EN14181 MCERTS. Stack testing undertake twice yearly to check on the calibration factors etc. MIRFT, FID, etc A1-Cbiss are suppliers and service suppoirt for the equipment",null,null,null,null,null,null,null,null,null,null,null,null,null,null,"Report to 2 decimal places, i.e. xx.xx%"]
[]
[]
[]
[]
["Results of emissions to air that are continuously monitored (maximum and average values for each line)"]
["Substance","Reference Period","Emission Limit Value","A1",null,"A2",null,"A3",null,"A4",null,"A5"]
[null,null,null,"Max.","Avg.","Max.","Avg.","Max.","Avg.","Max.","Avg.","Max.","Avg."]
["Oxides of nitrogen","Daily mean","200 mg/m3 ",{"$f":"NOx!O19","v":198.34},{"$f":"NOx!N19","v":189.44416666666669},{"$f":"NOx!O34","v":197.95},{"$f":"NOx!N34","v":189.33545454545455},{"$f":"NOx!O49","v":198.28},{"$f":"NOx!N49","v":192.1541666666667}]
[null,"½ hourly mean","400 mg/m3 ",{"$f":"NOx!M19","v":327.87},{"$f":"NOx!L19","v":189.17583333333334},{"$f":"NOx!M34","v":373.86},{"$f":"NOx!L34","v":189.01454545454547},{"$f":"NOx!M49","v":372.82},{"$f":"NOx!L49","v":192.1525}]
["Particulates","Daily mean","10 mg/m3",{"$f":"Particulates!O19","v":6.32},{"$f":"Particulates!N19","v":1.4175000000000002},{"$f":"Particulates!O34","v":3.83},{"$f":"Particulates!N34","v":0.71181818181818179},{"$f":"Particulates!O49","v":7.23},{"$f":"Particulates!N49","v":2.7808333333333333}]
[null,"½ hourly mean","30 mg/m3 ",{"$f":"Particulates!M19","v":13.06},{"$f":"Particulates!L19","v":1.4158333333333335},{"$f":"Particulates!M34","v":26.68},{"$f":"Particulates!L34","v":0.74818181818181817},{"$f":"Particulates!M49","v":112.84},{"$f":"Particulates!L49","v":2.78}]
["Total Organic Carbon ","Daily mean","10 mg/m3 ",{"$f":"TOC!O19","v":3.68},{"$f":"TOC!N19","v":1.0008333333333332},{"$f":"TOC!O34","v":1.28},{"$f":"TOC!N34","v":0.4272727272727273},{"$f":"TOC!O49","v":1.77},{"$f":"TOC!N49","v":0.6908333333333333}]
[null,"½ hourly mean","20 mg/m3 ",{"$f":"TOC!M19","v":18.079999999999998},{"$f":"TOC!L19","v":1.0083333333333333},{"$f":"TOC!M34","v":11.72},{"$f":"TOC!L34","v":0.43181818181818188},{"$f":"TOC!M49","v":8.43},{"$f":"TOC!L49","v":0.6908333333333333}]
["Hydrogen chloride ","Daily mean","10 mg/m3 ",{"$f":"HCl!O19","v":2.15},{"$f":"HCl!N19","v":0.81416666666666682},{"$f":"HCl!O34","v":6.77},{"$f":"HCl!N34","v":1.0018181818181817},{"$f":"HCl!O49","v":1.88},{"$f":"HCl!N49","v":0.98499999999999999}]
[null,"½ hourly mean","60 mg/m3 ",{"$f":"HCl!M19","v":35.68},{"$f":"HCl!L19","v":0.82000000000000017},{"$f":"HCl!M34","v":21.13},{"$f":"HCl!L34","v":1.0018181818181819},{"$f":"HCl!M49","v":32.86},{"$f":"HCl!L49","v":0.98583333333333334}]
["Sulphur dioxide","Daily mean","50 mg/m3 ",{"$f":"'SO2'!O19","v":48.8},{"$f":"'SO2'!N19","v":44.647500000000008},{"$f":"'SO2'!O34","v":47.74},{"$f":"'SO2'!N34","v":40.93363636363636},{"$f":"'SO2'!O49","v":49.79},{"$f":"'SO2'!N49","v":39.766666666666673}]
[null,"½ hourly mean","200 mg/m3 ",{"$f":"'SO2'!M19","v":168.6},{"$f":"'SO2'!L19","v":44.547500000000007},{"$f":"'SO2'!M34","v":169.45},{"$f":"'SO2'!L34","v":40.54818181818181},{"$f":"'SO2'!M49","v":162.13},{"$f":"'SO2'!L49","v":39.540833333333332}]
["Carbon monoxide ","Daily mean","50 mg/m3 ",{"$f":"'CO 95% 10 min'!Q19","v":48.39},{"$f":"'CO 95% 10 min'!P19","v":27.645833333333332},{"$f":"'CO 95% 10 min'!Q34","v":47.37},{"$f":"'CO 95% 10 min'!P34","v":24.294545454545457},{"$f":"'CO 95% 10 min'!Q49","v":47.99},{"$f":"'CO 95% 10 min'!P49","v":31.634999999999994}]
[null,"½ hourly mean *","100 mg/m3 *"]
[null,"95%ile 10-min avg *","150 mg/m3 *",{"$f":"'CO 95% 10 min'!M19","v":68.812500000000014},{"$f":"'CO 95% 10 min'!N19","v":27.626666666666669},{"$f":"'CO 95% 10 min'!M34","v":65.02},{"$f":"'CO 95% 10 min'!N34","v":24.299090909090911},{"$f":"'CO 95% 10 min'!M49","v":76.628333333333345},{"$f":"'CO 95% 10 min'!N49","v":31.59}]
[" Ammonia","Daily mean","No limit set",{"$f":"'NH3'!O19","v":26.99},{"$f":"'NH3'!N19","v":12.679166666666665},{"$f":"'NH3'!O34","v":32.78},{"$f":"'NH3'!N34","v":12},{"$f":"'NH3'!O49","v":40.11},{"$f":"'NH3'!N49","v":19.7225}]
["* = delete or amend as appropriate"]
["Comments :"]
["Taken from monthly report emailed to G Bains, site officer - • The FGT by-pass damper opened due to a fault on the 3rd, this has been reported as an abnormal operation. There were two half-hour periods which exceeded the ELV for dust, however these come under the period of abnormal operation and are therefore, not reportable as breaches of our ELV."]

{"sheet":"HCl","index":15,"n_rows":79,"n_cols":17,"rows_kept":79,"cut":false,"hidden":false,"merged":[[12,16,15,18],[51,9,63,9],[66,9,78,9],[4,9,4,14],[4,1,4,3],[4,4,4,6],[48,0,51,6],[47,0,47,6],[6,9,18,9],[21,9,33,9],[36,9,48,9],[3,16,7,18],[9,16,11,18]]}
[{"$f":"+'Cover Page'!$B$29","v":"Annual Performance Report 2022"},null,null,null,{"$f":"+'Cover Page'!$B$33","v":"The Coventry and Solihull Waste Disposal Company Limited"}]
[]
["Monitoring of Hydrogen Chloride emissions",null,null,"Whole Installation",null,null,"See  Notes in Cell Q3",null,null,{"$f":"+A3","v":"Monitoring of Hydrogen Chloride emissions"},null,null,null,"Per Combustion Line",null,null,"Notes:"]
[null,null,null,null,null,null,null,null,null,null,null,null,null,null,null,null,"User to add logic to complete Whole installation, Table A5:G18. From the data in Per Combustion Line, Table J6:O79, subject to No. of lines installed"]
["mg/Nm3","1/2 Hourly Reference Periods",null,null,"Daily Reference Periods"]
[{"$f":"+'Cover Page'!C39","v":2022},"1/2 hourly HCl ELV","Monthly 1/2 hourly mean","Highest 1/2 hourly maximum","Daily HCl ELV","Monthly daily mean","Highest daily maximum",null,null,{"$f":"+A6","v":2022},"mg/Nm3","Monthly 1/2 hourly mean","Monthly 1/2 hourly maximum","Monthly daily mean","Monthly daily maximum"]
["Jan",60,0.93,21.13,10,0.95,3.32,null,null,"A1","Jan",0.82,2.31,0.83,1.0900000000000001]
["Feb",60,0.67,5.64,10,0.67,1.26,null,null,null,"Feb",0.89,5.64,0.87,1.26]
["Mar",60,0.7,21.17,10,0.69,1.62,null,null,null,"Mar",0.89,4.0999999999999996,0.89,1.1399999999999999,null,"Whole Installation table A5:G18:"]
["Apr",60,0.8,4.41,10,0.81,1.67,null,null,null,"Apr",0.85,2,0.85,0.99,null,"Mean: for 1/2 hourly and daily periods calculate mean of values across all operational combustion lines for the month"]
["May",60,0.96,5.44,10,0.97,2.16,null,null,null,"May",0.89,2.35,0.89,1.18]
["Jun",60,1.34,9.2799999999999994,10,1.34,2.75,null,null,null,"Jun",0.9,2.48,0.9,1.26]
["Jul",60,1.6,10.19,10,1.61,4.05,null,null,null,"Jul",1.17,5.81,1.1399999999999999,2.15,null,"Maximum: for 1/2 hourly and daily periods use the highest value across all operational combustion lines for the month"]
["Aug",60,1.93,35.68,10,1.92,6.77,null,null,null,"Aug",1.1599999999999999,35.68,1.1399999999999999,1.82]
["Sep",60,0.89,32.86,10,0.83,1.8,null,null,null,"Sep",0.76,4.3600000000000003,0.75,1.8]
["Oct",60,0.6,9.17,10,0.61,1.59,null,null,null,"Oct",0.49,9.17,0.49,1.35]
["Nov",60,0.53,14.1,10,0.54,1.79,null,null,null,"Nov",0.71,14.1,0.71,1.79]
["Dec",60,0.42,3.47,10,0.42,1.05,null,null,null,"Dec",0.31,3.2,0.31,0.8]
[null,null,null,null,null,null,null,null,null,null,"Annual",{"$f":"AVERAGE(L7:L18)","v":0.82000000000000017},{"$f":"MAX(M7:M18)","v":35.68},{"$f":"AVERAGE(N7:N18)","v":0.81416666666666682},{"$f":"MAX(O7:O18)","v":2.15}]
[]
[null,null,null,null,null,null,null,null,null,{"$f":"+A6","v":2022},"mg/Nm3","Monthly 1/2 hourly mean","Monthly 1/2 hourly maximum","Monthly daily mean","Monthly daily maximum"]
[null,null,null,null,null,null,null,null,null,"A2","Jan",1.17,21.13,1.18,3.32]
[null,null,null,null,null,null,null,null,null,null,"Feb",0.04,2.79,0.03,1.1000000000000001]
[null,null,null,null,null,null,null,null,null,null,"Mar",0.15,4.09,0.15,0.95]
[null,null,null,null,null,null,null,null,null,null,"Apr",0.35,4.41,0.34,0.77]
[null,null,null,null,null,null,null,null,null,null,"May",0.63,5.44,0.64,2.16]
[null,null,null,null,null,null,null,null,null,null,"Jun",1.68,7.42,1.68,2.75]
[null,null,null,null,null,null,null,null,null,null,"Jul",2.4700000000000002,10.19,2.46,4.05]
[null,null,null,null,null,null,null,null,null,null,"Aug",3.72,17.170000000000002,3.72,6.77]
[null,null,null,null,null,null,null,null,null,null,"Sep"]
[null,null,null,null,null,null,null,null,null,null,"Oct",0.23,0.57999999999999996,0.24,0.27]
[null,null,null,null,null,null,null,null,null,null,"Nov",0.3,0.77,0.3,0.36]
[null,null,null,null,null,null,null,null,null,null,"Dec",0.28000000000000003,0.64,0.28000000000000003,0.35]
[null,null,null,null,null,null,null,null,null,null,"Annual",{"$f":"AVERAGE(L22:L33)","v":1.0018181818181819},{"$f":"MAX(M22:M33)","v":21.13},{"$f":"AVERAGE(N22:N33)","v":1.0018181818181817},{"$f":"MAX(O22:O33)","v":6.77}]
[]
[null,null,null,null,null,null,null,null,null,{"$f":"+A6","v":2022},"mg/Nm3","Monthly 1/2 hourly mean","Monthly 1/2 hourly maximum","Monthly daily mean","Monthly daily maximum"]
[null,null,null,null,null,null,null,null,null,"A3","Jan",0.8,1.91,0.8,1.34]
[null,null,null,null,null,null,null,null,null,null,"Feb",0.87,1.95,0.87,1.19]
[null,null,null,null,null,null,null,null,null,null,"Mar",1.1000000000000001,21.17,1.08,1.62]
[null,null,null,null,null,null,null,null,null,null,"Apr",1.1499999999999999,2.37,1.1499999999999999,1.67]
[null,null,null,null,null,null,null,null,null,null,"May",1.31,2.4700000000000002,1.31,1.8]
[null,null,null,null,null,null,null,null,null,null,"Jun",1.47,9.2799999999999994,1.47,1.88]
[null,null,null,null,null,null,null,null,null,null,"Jul",1.04,4.05,1.06,1.54]
[null,null,null,null,null,null,null,null,null,null,"Aug",0.9,8.99,0.9,1.56]
[null,null,null,null,null,null,null,null,null,null,"Sep",1.02,32.86,0.93,1.71]
[null,null,null,null,null,null,null,null,null,null,"Oct",0.89,3.63,0.89,1.59]
[null,null,null,null,null,null,null,null,null,null,"Nov",0.62,2.9,0.7,1.33]
["Comments :",null,null,null,null,null,null,null,null,null,"Dec",0.66,3.47,0.66,1.05]
[null,null,null,null,null,null,null,null,null,null,"Annual",{"$f":"AVERAGE(L37:L48)","v":0.98583333333333334},{"$f":"MAX(M37:M48)","v":32.86},{"$f":"AVERAGE(N37:N48)","v":0.98499999999999999},{"$f":"MAX(O37:O48)","v":1.88}]
[]
[null,null,null,null,null,null,null,null,null,{"$f":"+A6","v":2022},"mg/Nm3","Monthly 1/2 hourly mean","Monthly 1/2 hourly maximum","Monthly daily mean","Monthly daily maximum"]
[null,null,null,null,null,null,null,null,null,"A4","Jan"]
[null,null,null,null,null,null,null,null,null,null,"Feb"]
[null,null,null,null,null,null,null,null,null,null,"Mar"]
[null,null,null,null,null,null,null,null,null,null,"Apr"]
[null,null,null,null,null,null,null,null,null,null,"May"]
[null,null,null,null,null,null,null,null,null,null,"Jun"]
[null,null,null,null,null,null,null,null,null,null,"Jul"]
[null,null,null,null,null,null,null,null,null,null,"Aug"]
[null,null,null,null,null,null,null,null,null,null,"Sep"]
[null,null,null,null,null,null,null,null,null,null,"Oct"]
[null,null,null,null,null,null,null,null,null,null,"Nov"]
[null,null,null,null,null,null,null,null,null,null,"Dec"]
[null,null,null,null,null,null,null,null,null,null,"Annual",{"$f":"AVERAGE(L52:L63)","v":{"$error":"#DIV/0!"}},{"$f":"MAX(M52:M63)","v":0},{"$f":"AVERAGE(N52:N63)","v":{"$error":"#DIV/0!"}},{"$f":"MAX(O52:O63)","v":0}]
[]
[null,null,null,null,null,null,null,null,null,{"$f":"+A6","v":2022},"mg/Nm3","Monthly 1/2 hourly mean","Monthly 1/2 hourly maximum","Monthly daily mean","Monthly daily maximum"]
[null,null,null,null,null,null,null,null,null,"A5","Jan"]
[null,null,null,null,null,null,null,null,null,null,"Feb"]
[null,null,null,null,null,null,null,null,null,null,"Mar"]
[null,null,null,null,null,null,null,null,null,null,"Apr"]
[null,null,null,null,null,null,null,null,null,null,"May"]
[null,null,null,null,null,null,null,null,null,null,"Jun"]
[null,null,null,null,null,null,null,null,null,null,"Jul"]
[null,null,null,null,null,null,null,null,null,null,"Aug"]
[null,null,null,null,null,null,null,null,null,null,"Sep"]
[null,null,null,null,null,null,null,null,null,null,"Oct"]
[null,null,null,null,null,null,null,null,null,null,"Nov"]
[null,null,null,null,null,null,null,null,null,null,"Dec"]
[null,null,null,null,null,null,null,null,null,null,"Annual",{"$f":"AVERAGE(L67:L78)","v":{"$error":"#DIV/0!"}},{"$f":"MAX(M67:M78)","v":0},{"$f":"AVERAGE(N67:N78)","v":{"$error":"#DIV/0!"}},{"$f":"MAX(O67:O78)","v":0}]

{"sheet":"SO2","index":16,"n_rows":79,"n_cols":17,"rows_kept":79,"cut":false,"hidden":false,"merged":[[3,16,7,18],[9,16,11,18],[12,16,15,18],[66,9,78,9],[4,1,4,3],[4,4,4,6],[4,9,4,14],[6,9,18,9],[21,9,33,9],[36,9,48,9],[47,0,47,6],[48,0,51,6],[51,9,63,9]]}
[{"$f":"+'Cover Page'!$B$29","v":"Annual Performance Report 2022"},null,null,null,{"$f":"+'Cover Page'!$B$33","v":"The Coventry and Solihull Waste Disposal Company Limited"}]
[]
["Monitoring of Sulphur dioxide emissions",null,null,"Whole Installation",null,null,"See  Notes in Cell Q3",null,null,{"$f":"+A3","v":"Monitoring of Sulphur dioxide emissions"},null,null,null,"Per Combustion Line",null,null,"Notes:"]
[null,null,null,null,null,null,null,null,null,null,null,null,null,null,null,null,"User to add logic to complete Whole installation, Table A5:G18. From the data in Per Combustion Line, Table J6:O79, subject to No. of lines installed"]
["mg/Nm3","1/2 Hourly Reference Periods",null,null,"Daily Reference Periods"]
[{"$f":"+'Cover Page'!C39","v":2022},"1/2 hourly SO2 ELV","Monthly 1/2 hourly mean","Highest 1/2 hourly maximum","Daily SO2 ELV","Monthly daily mean","Highest daily maximum",null,null,{"$f":"+A6","v":2022},"mg/Nm3","Monthly 1/2 hourly mean","Monthly 1/2 hourly maximum","Monthly daily mean","Monthly daily maximum"]
["Jan",200,35.14,119.1,50,35.26,44.81,null,null,"A1","Jan",42.04,119.1,42.12,44.81]
["Feb",200,38.74,96.93,50,38.619999999999997,47.56,null,null,null,"Feb",43.17,95.77,43.48,47.56]
["Mar",200,42.22,137.22999999999999,50,42.36,48.06,null,null,null,"Mar",45.52,137.22999999999999,45.62,48.06,null,"Whole Installation table A5:G18:"]
["Apr",200,44.82,127.2,50,44.86,48.66,null,null,null,"Apr",46.41,122.52,46.41,48.58,null,"Mean: for 1/2 hourly and daily periods calculate mean of values across all operational combustion lines for the month"]
["May",200,43.29,130.03,50,43.45,48.8,null,null,null,"May",44.4,121,44.47,48.8]
["Jun",200,43.89,138.30000000000001,50,43.89,46.8,null,null,null,"Jun",45.06,121.25,45.06,46.8]
["Jul",200,42.87,129.18,50,43,49.79,null,null,null,"Jul",45.04,127.16,45.11,48.11,null,"Maximum: for 1/2 hourly and daily periods use the highest value across all operational combustion lines for the month"]
["Aug",200,43.51,168.6,50,43.83,48.03,null,null,null,"Aug",46.27,168.6,46.29,48.03]
["Sep",200,44.18,110.22,50,44.12,48.23,null,null,null,"Sep",45.23,96.58,45.05,48.23]
["Oct",200,38.86,103.62,50,39.24,46.79,null,null,null,"Oct",42.15,101.84,42.12,46.79]
["Nov",200,39.53,169.45,50,40.630000000000003,47.26,null,null,null,"Nov",43.96,129.34,44.72,47.26]
["Dec",200,43.18,162.13,50,43.19,48.49,null,null,null,"Dec",45.32,157.26,45.32,48.49]
[null,null,null,null,null,null,null,null,null,null,"Annual",{"$f":"AVERAGE(L7:L18)","v":44.547500000000007},{"$f":"MAX(M7:M18)","v":168.6},{"$f":"AVERAGE(N7:N18)","v":44.647500000000008},{"$f":"MAX(O7:O18)","v":48.8}]
[]
[null,null,null,null,null,null,null,null,null,{"$f":"+A6","v":2022},"mg/Nm3","Monthly 1/2 hourly mean","Monthly 1/2 hourly maximum","Monthly daily mean","Monthly daily maximum"]
[null,null,null,null,null,null,null,null,null,"A2","Jan",35.92,104.55,36.200000000000003,41.84]
[null,null,null,null,null,null,null,null,null,null,"Feb",40.700000000000003,96.93,41.28,45.18]
[null,null,null,null,null,null,null,null,null,null,"Mar",42.82,134.08000000000001,42.82,46.81]
[null,null,null,null,null,null,null,null,null,null,"Apr",43.63,127.2,43.61,45.8]
[null,null,null,null,null,null,null,null,null,null,"May",42.32,105.24,42.69,45.69]
[null,null,null,null,null,null,null,null,null,null,"Jun",42.91,96.97,42.91,45.88]
[null,null,null,null,null,null,null,null,null,null,"Jul",42.14,116.37,42.3,45.85]
[null,null,null,null,null,null,null,null,null,null,"Aug",40.840000000000003,109.98,41.79,46.83]
[null,null,null,null,null,null,null,null,null,null,"Sep"]
[null,null,null,null,null,null,null,null,null,null,"Oct",34.28,93.53,35.51,44.04]
[null,null,null,null,null,null,null,null,null,null,"Nov",36.83,169.45,37.520000000000003,45.98]
[null,null,null,null,null,null,null,null,null,null,"Dec",43.64,126.19,43.64,47.74]
[null,null,null,null,null,null,null,null,null,null,"Annual",{"$f":"AVERAGE(L22:L33)","v":40.54818181818181},{"$f":"MAX(M22:M33)","v":169.45},{"$f":"AVERAGE(N22:N33)","v":40.93363636363636},{"$f":"MAX(O22:O33)","v":47.74}]
[]
[null,null,null,null,null,null,null,null,null,{"$f":"+A6","v":2022},"mg/Nm3","Monthly 1/2 hourly mean","Monthly 1/2 hourly maximum","Monthly daily mean","Monthly daily maximum"]
[null,null,null,null,null,null,null,null,null,"A3","Jan",28.03,81.489999999999995,28.12,41.6]
[null,null,null,null,null,null,null,null,null,null,"Feb",33.47,86.35,33.450000000000003,42.07]
[null,null,null,null,null,null,null,null,null,null,"Mar",38.06,120.85,38.04,44.09]
[null,null,null,null,null,null,null,null,null,null,"Apr",44.3,124.1,44.3,48.66]
[null,null,null,null,null,null,null,null,null,null,"May",43.41,130.03,43.41,45.83]
[null,null,null,null,null,null,null,null,null,null,"Jun",43.69,138.30000000000001,43.67,46.25]
[null,null,null,null,null,null,null,null,null,null,"Jul",41.27,129.18,41.57,49.79]
[null,null,null,null,null,null,null,null,null,null,"Aug",43.51,156.84,43.51,47.19]
[null,null,null,null,null,null,null,null,null,null,"Sep",43.09,110.22,43.16,45.75]
[null,null,null,null,null,null,null,null,null,null,"Oct",37.83,103.62,37.99,45.73]
[null,null,null,null,null,null,null,null,null,null,"Nov",37.24,96.59,39.39,44.9]
["Comments :",null,null,null,null,null,null,null,null,null,"Dec",40.590000000000003,162.13,40.590000000000003,45.83]
[null,null,null,null,null,null,null,null,null,null,"Annual",{"$f":"AVERAGE(L37:L48)","v":39.540833333333332},{"$f":"MAX(M37:M48)","v":162.13},{"$f":"AVERAGE(N37:N48)","v":39.766666666666673},{"$f":"MAX(O37:O48)","v":49.79}]
[]
[null,null,null,null,null,null,null,null,null,{"$f":"+A6","v":2022},"mg/Nm3","Monthly 1/2 hourly mean","Monthly 1/2 hourly maximum","Monthly daily mean","Monthly daily maximum"]
[null,null,null,null,null,null,null,null,null,"A4","Jan"]
[null,null,null,null,null,null,null,null,null,null,"Feb"]
[null,null,null,null,null,null,null,null,null,null,"Mar"]
[null,null,null,null,null,null,null,null,null,null,"Apr"]
[null,null,null,null,null,null,null,null,null,null,"May"]
[null,null,null,null,null,null,null,null,null,null,"Jun"]
[null,null,null,null,null,null,null,null,null,null,"Jul"]
[null,null,null,null,null,null,null,null,null,null,"Aug"]
[null,null,null,null,null,null,null,null,null,null,"Sep"]
[null,null,null,null,null,null,null,null,null,null,"Oct"]
[null,null,null,null,null,null,null,null,null,null,"Nov"]
[null,null,null,null,null,null,null,null,null,null,"Dec"]
[null,null,null,null,null,null,null,null,null,null,"Annual",{"$f":"AVERAGE(L52:L63)","v":{"$error":"#DIV/0!"}},{"$f":"MAX(M52:M63)","v":0},{"$f":"AVERAGE(N52:N63)","v":{"$error":"#DIV/0!"}},{"$f":"MAX(O52:O63)","v":0}]
[]
[null,null,null,null,null,null,null,null,null,{"$f":"+A6","v":2022},"mg/Nm3","Monthly 1/2 hourly mean","Monthly 1/2 hourly maximum","Monthly daily mean","Monthly daily maximum"]
[null,null,null,null,null,null,null,null,null,"A5","Jan"]
[null,null,null,null,null,null,null,null,null,null,"Feb"]
[null,null,null,null,null,null,null,null,null,null,"Mar"]
[null,null,null,null,null,null,null,null,null,null,"Apr"]
[null,null,null,null,null,null,null,null,null,null,"May"]
[null,null,null,null,null,null,null,null,null,null,"Jun"]
[null,null,null,null,null,null,null,null,null,null,"Jul"]
[null,null,null,null,null,null,null,null,null,null,"Aug"]
[null,null,null,null,null,null,null,null,null,null,"Sep"]
[null,null,null,null,null,null,null,null,null,null,"Oct"]
[null,null,null,null,null,null,null,null,null,null,"Nov"]
[null,null,null,null,null,null,null,null,null,null,"Dec"]
[null,null,null,null,null,null,null,null,null,null,"Annual",{"$f":"AVERAGE(L67:L78)","v":{"$error":"#DIV/0!"}},{"$f":"MAX(M67:M78)","v":0},{"$f":"AVERAGE(N67:N78)","v":{"$error":"#DIV/0!"}},{"$f":"MAX(O67:O78)","v":0}]

{"sheet":"NOx","index":17,"n_rows":79,"n_cols":17,"rows_kept":79,"cut":false,"hidden":false,"merged":[[3,16,7,18],[9,16,11,18],[12,16,15,18],[66,9,78,9],[4,1,4,3],[4,4,4,6],[4,9,4,14],[6,9,18,9],[21,9,33,9],[36,9,48,9],[47,0,47,6],[48,0,51,6],[51,9,63,9]]}
[{"$f":"+'Cover Page'!$B$29","v":"Annual Performance Report 2022"},null,null,null,{"$f":"+'Cover Page'!$B$33","v":"The Coventry and Solihull Waste Disposal Company Limited"}]
[]
["Monitoring of Oxides of Nitrogen emissions",null,null,"Whole Installation",null,null,"See  Notes in Cell Q3",null,null,{"$f":"+A3","v":"Monitoring of Oxides of Nitrogen emissions"},null,null,null,"Per Combustion Line",null,null,"Notes:"]
[null,null,null,null,null,null,null,null,null,null,null,null,null,null,null,null,"User to add logic to complete Whole installation, Table A5:G18. From the data in Per Combustion Line, Table J6:O79, subject to No. of lines installed"]
["mg/Nm3","1/2 Hourly Reference Periods",null,null,"Daily Reference Periods"]
[{"$f":"+'Cover Page'!C39","v":2022},"1/2 hourly NOx ELV","Monthly 1/2 hourly mean","Highest 1/2 hourly maximum","Daily NOx ELV","Monthly daily mean","Highest daily maximum",null,null,{"$f":"+A6","v":2022},"mg/Nm3","Monthly 1/2 hourly mean","Monthly 1/2 hourly maximum","Monthly daily mean","Monthly daily maximum"]
["Jan",400,187.13,329.85,200,187.22,196.17,null,null,"A1","Jan",189.64,279.67,189.94,196.17]
["Feb",400,189.51,305.86,200,189.77,197.61,null,null,null,"Feb",188.71,305.86,189.24,197.38]
["Mar",400,189.76,314.05,200,189.75,197.46,null,null,null,"Mar",188.49,314.05,188.6,194.58,null,"Whole Installation table A5:G18:"]
["Apr",400,190.4,306.14,200,190.64,200.28,null,null,null,"Apr",188.59,217.45,188.59,196.92,null,"Mean: for 1/2 hourly and daily periods calculate mean of values across all operational combustion lines for the month"]
["May",400,190.82,308.93,200,191.09,198.21,null,null,null,"May",188.72,308.93,189.11,198.21]
["Jun",400,189.56,269.14,200,189.54,197.76,null,null,null,"Jun",186.65,269.14,186.65,193.63]
["Jul",400,190.28,327.87,200,190.36,198.28,null,null,null,"Jul",188.89,327.87,189.4,197.14,null,"Maximum: for 1/2 hourly and daily periods use the highest value across all operational combustion lines for the month"]
["Aug",400,191.84,315.74,200,192.41,198.34,null,null,null,"Aug",193.14,287.95999999999998,193.26,198.34]
["Sep",400,192.54,302.08999999999997,200,192.36,197.79,null,null,null,"Sep",190.83,302.08999999999997,190.73,197.24]
["Oct",400,192.36,287.77999999999997,200,192.35,197.95,null,null,null,"Oct",191.96,287.77999999999997,191.96,196.65]
["Nov",400,191.17,372.82,200,192.04,197.74,null,null,null,"Nov",189.88,264.74,191.22,197.74]
["Dec",400,186.64,373.86,200,186.66,197.43,null,null,null,"Dec",184.61,319.52999999999997,184.63,194.98]
[null,null,null,null,null,null,null,null,null,null,"Annual",{"$f":"AVERAGE(L7:L18)","v":189.17583333333334},{"$f":"MAX(M7:M18)","v":327.87},{"$f":"AVERAGE(N7:N18)","v":189.44416666666669},{"$f":"MAX(O7:O18)","v":198.34}]
[]
[null,null,null,null,null,null,null,null,null,{"$f":"+A6","v":2022},"mg/Nm3","Monthly 1/2 hourly mean","Monthly 1/2 hourly maximum","Monthly daily mean","Monthly daily maximum"]
[null,null,null,null,null,null,null,null,null,"A2","Jan",184.69,329.85,184.64,193.01]
[null,null,null,null,null,null,null,null,null,null,"Feb",188.97,303.66000000000003,189.04,197.3]
[null,null,null,null,null,null,null,null,null,null,"Mar",188.68,307.77999999999997,188.68,195.27]
[null,null,null,null,null,null,null,null,null,null,"Apr",188.48,306.14,189.09,194.01]
[null,null,null,null,null,null,null,null,null,null,"May",189.97,258.95999999999998,190.34,195.15]
[null,null,null,null,null,null,null,null,null,null,"Jun",189.36,248.93,189.36,194.07]
[null,null,null,null,null,null,null,null,null,null,"Jul",188.17,310.3,188.19,192.86]
[null,null,null,null,null,null,null,null,null,null,"Aug",188.38,315.74,189.92,196.69]
[null,null,null,null,null,null,null,null,null,null,"Sep"]
[null,null,null,null,null,null,null,null,null,null,"Oct",193.98,260.27999999999997,194.05,197.95]
[null,null,null,null,null,null,null,null,null,null,"Nov",191.47,274.56,192.35,197.68]
[null,null,null,null,null,null,null,null,null,null,"Dec",187.01,373.86,187.03,197.43]
[null,null,null,null,null,null,null,null,null,null,"Annual",{"$f":"AVERAGE(L22:L33)","v":189.01454545454547},{"$f":"MAX(M22:M33)","v":373.86},{"$f":"AVERAGE(N22:N33)","v":189.33545454545455},{"$f":"MAX(O22:O33)","v":197.95}]
[]
[null,null,null,null,null,null,null,null,null,{"$f":"+A6","v":2022},"mg/Nm3","Monthly 1/2 hourly mean","Monthly 1/2 hourly maximum","Monthly daily mean","Monthly daily maximum"]
[null,null,null,null,null,null,null,null,null,"A3","Jan",187.32,238.92,187.56,194.11]
[null,null,null,null,null,null,null,null,null,null,"Feb",190.59,303.79000000000002,190.58,197.61]
[null,null,null,null,null,null,null,null,null,null,"Mar",192.29,280.8,192.36,197.46]
[null,null,null,null,null,null,null,null,null,null,"Apr",193.95,265.70999999999998,193.95,198.28]
[null,null,null,null,null,null,null,null,null,null,"May",193.07,248.17,193.07,197.06]
[null,null,null,null,null,null,null,null,null,null,"Jun",192.95,265.51,192.94,197.76]
[null,null,null,null,null,null,null,null,null,null,"Jul",194.47,281.77999999999997,194.11,198.28]
[null,null,null,null,null,null,null,null,null,null,"Aug",194.03,292.61,194.03,197.26]
[null,null,null,null,null,null,null,null,null,null,"Sep",194.31,258.58,194.06,197.79]
[null,null,null,null,null,null,null,null,null,null,"Oct",191.96,234.72,192.01,197.65]
[null,null,null,null,null,null,null,null,null,null,"Nov",192.59,372.82,192.86,196.95]
["Comments :",null,null,null,null,null,null,null,null,null,"Dec",188.3,283.85000000000002,188.32,196.91]
[null,null,null,null,null,null,null,null,null,null,"Annual",{"$f":"AVERAGE(L37:L48)","v":192.1525},{"$f":"MAX(M37:M48)","v":372.82},{"$f":"AVERAGE(N37:N48)","v":192.1541666666667},{"$f":"MAX(O37:O48)","v":198.28}]
[]
[null,null,null,null,null,null,null,null,null,{"$f":"+A6","v":2022},"mg/Nm3","Monthly 1/2 hourly mean","Monthly 1/2 hourly maximum","Monthly daily mean","Monthly daily maximum"]
[null,null,null,null,null,null,null,null,null,"A4","Jan"]
[null,null,null,null,null,null,null,null,null,null,"Feb"]
[null,null,null,null,null,null,null,null,null,null,"Mar"]
[null,null,null,null,null,null,null,null,null,null,"Apr"]
[null,null,null,null,null,null,null,null,null,null,"May"]
[null,null,null,null,null,null,null,null,null,null,"Jun"]
[null,null,null,null,null,null,null,null,null,null,"Jul"]
[null,null,null,null,null,null,null,null,null,null,"Aug"]
[null,null,null,null,null,null,null,null,null,null,"Sep"]
[null,null,null,null,null,null,null,null,null,null,"Oct"]
[null,null,null,null,null,null,null,null,null,null,"Nov"]
[null,null,null,null,null,null,null,null,null,null,"Dec"]
[null,null,null,null,null,null,null,null,null,null,"Annual",{"$f":"AVERAGE(L52:L63)","v":{"$error":"#DIV/0!"}},{"$f":"MAX(M52:M63)","v":0},{"$f":"AVERAGE(N52:N63)","v":{"$error":"#DIV/0!"}},{"$f":"MAX(O52:O63)","v":0}]
[]
[null,null,null,null,null,null,null,null,null,{"$f":"+A6","v":2022},"mg/Nm3","Monthly 1/2 hourly mean","Monthly 1/2 hourly maximum","Monthly daily mean","Monthly daily maximum"]
[null,null,null,null,null,null,null,null,null,"A5","Jan"]
[null,null,null,null,null,null,null,null,null,null,"Feb"]
[null,null,null,null,null,null,null,null,null,null,"Mar"]
[null,null,null,null,null,null,null,null,null,null,"Apr"]
[null,null,null,null,null,null,null,null,null,null,"May"]
[null,null,null,null,null,null,null,null,null,null,"Jun"]
[null,null,null,null,null,null,null,null,null,null,"Jul"]
[null,null,null,null,null,null,null,null,null,null,"Aug"]
[null,null,null,null,null,null,null,null,null,null,"Sep"]
[null,null,null,null,null,null,null,null,null,null,"Oct"]
[null,null,null,null,null,null,null,null,null,null,"Nov"]
[null,null,null,null,null,null,null,null,null,null,"Dec"]
[null,null,null,null,null,null,null,null,null,null,"Annual",{"$f":"AVERAGE(L67:L78)","v":{"$error":"#DIV/0!"}},{"$f":"MAX(M67:M78)","v":0},{"$f":"AVERAGE(N67:N78)","v":{"$error":"#DIV/0!"}},{"$f":"MAX(O67:O78)","v":0}]

{"sheet":"TOC","index":18,"n_rows":79,"n_cols":17,"rows_kept":79,"cut":false,"hidden":false,"merged":[[3,16,7,18],[9,16,11,18],[12,16,15,18],[66,9,78,9],[4,1,4,3],[4,4,4,6],[4,9,4,14],[6,9,18,9],[21,9,33,9],[36,9,48,9],[47,0,47,6],[48,0,51,6],[51,9,63,9]]}
[{"$f":"+'Cover Page'!$B$29","v":"Annual Performance Report 2022"},null,null,null,{"$f":"+'Cover Page'!$B$33","v":"The Coventry and Solihull Waste Disposal Company Limited"}]
[]
["Monitoring of Total organic carbon emissions",null,null,"Whole Installation",null,null,"See  Notes in Cell Q3",null,null,{"$f":"+A3","v":"Monitoring of Total organic carbon emissions"},null,null,null,"Per Combustion Line",null,null,"Notes:"]
[null,null,null,null,null,null,null,null,null,null,null,null,null,null,null,null,"User to add logic to complete Whole installation, Table A5:G18. From the data in Per Combustion Line, Table J6:O79, subject to No. of lines installed"]
["mg/Nm3","1/2 Hourly Reference Periods",null,null,"Daily Reference Periods"]
[{"$f":"+'Cover Page'!C39","v":2022},"1/2 hourly TOC ELV","Monthly 1/2 hourly mean","Highest 1/2 hourly maximum","Daily TOC ELV","Monthly daily mean","Highest daily maximum",null,null,{"$f":"+A6","v":2022},"mg/Nm3","Monthly 1/2 hourly mean","Monthly 1/2 hourly maximum","Monthly daily mean","Monthly daily maximum"]
["Jan",20,0.55000000000000004,6.44,10,0.54,1.26,null,null,"A1","Jan",0.9,6.44,0.91,1.26]
["Feb",20,0.73,5.94,10,0.73,1.73,null,null,null,"Feb",0.96,5.94,0.97,1.18]
["Mar",20,0.95,6.95,10,0.96,1.52,null,null,null,"Mar",1.29,6.95,1.29,1.52,null,"Whole Installation table A5:G18:"]
["Apr",20,0.6,6.26,10,0.6,1.32,null,null,null,"Apr",0.54,6.26,0.54,1.32,null,"Mean: for 1/2 hourly and daily periods calculate mean of values across all operational combustion lines for the month"]
["May",20,0.39,6.06,10,0.39,0.76,null,null,null,"May",0.43,6.06,0.42,0.67]
["Jun",20,0.52,3.97,10,0.52,0.81,null,null,null,"Jun",0.6,3.63,0.6,0.73]
["Jul",20,0.6,8.43,10,0.6,1.77,null,null,null,"Jul",0.5,4.22,0.48,0.79,null,"Maximum: for 1/2 hourly and daily periods use the highest value across all operational combustion lines for the month"]
["Aug",20,0.61,11.72,10,0.6,1.44,null,null,null,"Aug",0.54,7.9,0.54,1.07]
["Sep",20,1.27,7.45,10,1.27,3.68,null,null,null,"Sep",1.87,7.45,1.88,3.68]
["Oct",20,0.88,7.54,10,0.88,3.4,null,null,null,"Oct",1.25,14.49,1.25,3.4]
["Nov",20,1.1299999999999999,14.9,10,1.1200000000000001,3.25,null,null,null,"Nov",2.06,14.9,1.97,3.25]
["Dec",20,0.73,18.079999999999998,10,0.73,1.61,null,null,null,"Dec",1.1599999999999999,18.079999999999998,1.1599999999999999,1.61]
[null,null,null,null,null,null,null,null,null,null,"Annual",{"$f":"AVERAGE(L7:L18)","v":1.0083333333333333},{"$f":"MAX(M7:M18)","v":18.079999999999998},{"$f":"AVERAGE(N7:N18)","v":1.0008333333333332},{"$f":"MAX(O7:O18)","v":3.68}]
[]
[null,null,null,null,null,null,null,null,null,{"$f":"+A6","v":2022},"mg/Nm3","Monthly 1/2 hourly mean","Monthly 1/2 hourly maximum","Monthly daily mean","Monthly daily maximum"]
[null,null,null,null,null,null,null,null,null,"A2","Jan",0.17,0.46,0.17,0.25]
[null,null,null,null,null,null,null,null,null,null,"Feb",0.21,4.01,0.22,0.44]
[null,null,null,null,null,null,null,null,null,null,"Mar",0.78,1.1299999999999999,0.78,0.91]
[null,null,null,null,null,null,null,null,null,null,"Apr",0.6,1.47,0.6,0.76]
[null,null,null,null,null,null,null,null,null,null,"May",0.14000000000000001,0.93,0.14000000000000001,0.59]
[null,null,null,null,null,null,null,null,null,null,"Jun",0.39,3.97,0.39,0.73]
[null,null,null,null,null,null,null,null,null,null,"Jul",0.25,5.0199999999999996,0.25,0.82]
[null,null,null,null,null,null,null,null,null,null,"Aug",0.38,11.72,0.34,1.1599999999999999]
[null,null,null,null,null,null,null,null,null,null,"Sep"]
[null,null,null,null,null,null,null,null,null,null,"Oct",0.53,7.54,0.51,1.08]
[null,null,null,null,null,null,null,null,null,null,"Nov",0.69,1.62,0.69,1.28]
[null,null,null,null,null,null,null,null,null,null,"Dec",0.61,1.32,0.61,0.66]
[null,null,null,null,null,null,null,null,null,null,"Annual",{"$f":"AVERAGE(L22:L33)","v":0.43181818181818188},{"$f":"MAX(M22:M33)","v":11.72},{"$f":"AVERAGE(N22:N33)","v":0.4272727272727273},{"$f":"MAX(O22:O33)","v":1.28}]
[]
[null,null,null,null,null,null,null,null,null,{"$f":"+A6","v":2022},"mg/Nm3","Monthly 1/2 hourly mean","Monthly 1/2 hourly maximum","Monthly daily mean","Monthly daily maximum"]
[null,null,null,null,null,null,null,null,null,"A3","Jan",0.61,2.4300000000000002,0.61,0.91]
[null,null,null,null,null,null,null,null,null,null,"Feb",0.84,4.2,0.84,1.73]
[null,null,null,null,null,null,null,null,null,null,"Mar",0.78,5.01,0.78,1.37]
[null,null,null,null,null,null,null,null,null,null,"Apr",0.65,4.37,0.65,1.1200000000000001]
[null,null,null,null,null,null,null,null,null,null,"May",0.59,3.86,0.59,0.76]
[null,null,null,null,null,null,null,null,null,null,"Jun",0.57999999999999996,3.62,0.57999999999999996,0.81]
[null,null,null,null,null,null,null,null,null,null,"Jul",1.1399999999999999,8.43,1.1399999999999999,1.77]
[null,null,null,null,null,null,null,null,null,null,"Aug",0.89,4.8899999999999997,0.89,1.44]
[null,null,null,null,null,null,null,null,null,null,"Sep",0.65,4.6100000000000003,0.64,1.25]
[null,null,null,null,null,null,null,null,null,null,"Oct",0.69,2.14,0.68,1.55]
[null,null,null,null,null,null,null,null,null,null,"Nov",0.46,1.61,0.48,1.23]
["Comments :",null,null,null,null,null,null,null,null,null,"Dec",0.41,4.08,0.41,0.56000000000000005]
[null,null,null,null,null,null,null,null,null,null,"Annual",{"$f":"AVERAGE(L37:L48)","v":0.6908333333333333},{"$f":"MAX(M37:M48)","v":8.43},{"$f":"AVERAGE(N37:N48)","v":0.6908333333333333},{"$f":"MAX(O37:O48)","v":1.77}]
[]
[null,null,null,null,null,null,null,null,null,{"$f":"+A6","v":2022},"mg/Nm3","Monthly 1/2 hourly mean","Monthly 1/2 hourly maximum","Monthly daily mean","Monthly daily maximum"]
[null,null,null,null,null,null,null,null,null,"A4","Jan"]
[null,null,null,null,null,null,null,null,null,null,"Feb"]
[null,null,null,null,null,null,null,null,null,null,"Mar"]
[null,null,null,null,null,null,null,null,null,null,"Apr"]
[null,null,null,null,null,null,null,null,null,null,"May"]
[null,null,null,null,null,null,null,null,null,null,"Jun"]
[null,null,null,null,null,null,null,null,null,null,"Jul"]
[null,null,null,null,null,null,null,null,null,null,"Aug"]
[null,null,null,null,null,null,null,null,null,null,"Sep"]
[null,null,null,null,null,null,null,null,null,null,"Oct"]
[null,null,null,null,null,null,null,null,null,null,"Nov"]
[null,null,null,null,null,null,null,null,null,null,"Dec"]
[null,null,null,null,null,null,null,null,null,null,"Annual",{"$f":"AVERAGE(L52:L63)","v":{"$error":"#DIV/0!"}},{"$f":"MAX(M52:M63)","v":0},{"$f":"AVERAGE(N52:N63)","v":{"$error":"#DIV/0!"}},{"$f":"MAX(O52:O63)","v":0}]
[]
[null,null,null,null,null,null,null,null,null,{"$f":"+A6","v":2022},"mg/Nm3","Monthly 1/2 hourly mean","Monthly 1/2 hourly maximum","Monthly daily mean","Monthly daily maximum"]
[null,null,null,null,null,null,null,null,null,"A5","Jan"]
[null,null,null,null,null,null,null,null,null,null,"Feb"]
[null,null,null,null,null,null,null,null,null,null,"Mar"]
[null,null,null,null,null,null,null,null,null,null,"Apr"]
[null,null,null,null,null,null,null,null,null,null,"May"]
[null,null,null,null,null,null,null,null,null,null,"Jun"]
[null,null,null,null,null,null,null,null,null,null,"Jul"]
[null,null,null,null,null,null,null,null,null,null,"Aug"]
[null,null,null,null,null,null,null,null,null,null,"Sep"]
[null,null,null,null,null,null,null,null,null,null,"Oct"]
[null,null,null,null,null,null,null,null,null,null,"Nov"]
[null,null,null,null,null,null,null,null,null,null,"Dec"]
[null,null,null,null,null,null,null,null,null,null,"Annual",{"$f":"AVERAGE(L67:L78)","v":{"$error":"#DIV/0!"}},{"$f":"MAX(M67:M78)","v":0},{"$f":"AVERAGE(N67:N78)","v":{"$error":"#DIV/0!"}},{"$f":"MAX(O67:O78)","v":0}]

{"sheet":"Particulates","index":19,"n_rows":79,"n_cols":17,"rows_kept":79,"cut":false,"hidden":false,"merged":[[3,16,7,18],[9,16,11,18],[12,16,15,18],[66,9,78,9],[4,1,4,3],[4,4,4,6],[4,9,4,14],[6,9,18,9],[21,9,33,9],[36,9,48,9],[47,0,47,6],[48,0,51,6],[51,9,63,9]]}
[{"$f":"+'Cover Page'!$B$29","v":"Annual Performance Report 2022"},null,null,null,{"$f":"+'Cover Page'!$B$33","v":"The Coventry and Solihull Waste Disposal Company Limited"}]
[]
["Monitoring of Particulate matter emissions",null,null,"Whole Installation",null,null,"See  Notes in Cell Q3",null,null,{"$f":"+A3","v":"Monitoring of Particulate matter emissions"},null,null,null,"Per Combustion Line",null,null,"Notes:"]
[null,null,null,null,null,null,null,null,null,null,null,null,null,null,null,null,"User to add logic to complete Whole installation, Table A5:G18. From the data in Per Combustion Line, Table J6:O79, subject to No. of lines installed"]
["mg/Nm3","1/2 Hourly Reference Periods",null,null,"Daily Reference Periods"]
[{"$f":"+'Cover Page'!C39","v":2022},"1/2 hourly PM ELV","Monthly 1/2 hourly mean","Highest 1/2 hourly maximum","Daily PM ELV","Monthly daily mean","Highest daily maximum",null,null,{"$f":"+A6","v":2022},"mg/Nm3","Monthly 1/2 hourly mean","Monthly 1/2 hourly maximum","Monthly daily mean","Monthly daily maximum"]
["Jan",30,1.79,9.07,10,1.78,5.85,null,null,"A1","Jan",0.91,1.79,0.93,1.41]
["Feb",30,2.4300000000000002,11.87,10,2.58,7.23,null,null,null,"Feb",0.84,1.83,0.84,1.04]
["Mar",30,1.46,11.38,10,1.46,6.88,null,null,null,"Mar",0.81,3.23,0.81,1.01,null,"Whole Installation table A5:G18:"]
["Apr",30,1.33,8,10,1.27,3.83,null,null,null,"Apr",0.96,2.3199999999999998,0.96,1.27,null,"Mean: for 1/2 hourly and daily periods calculate mean of values across all operational combustion lines for the month"]
["May",30,1.51,15.4,10,1.55,5.34,null,null,null,"May",0.67,2.04,0.67,1.22]
["Jun",30,1.58,10.87,10,1.57,4.75,null,null,null,"Jun",1.24,2.5099999999999998,1.24,1.43]
["Jul",30,0.81,4.32,10,0.79,1.7,null,null,null,"Jul",1.35,2.5299999999999998,1.34,1.7,null,"Maximum: for 1/2 hourly and daily periods use the highest value across all operational combustion lines for the month"]
["Aug",30,1.32,6.39,10,1.33,3.38,null,null,null,"Aug",1.53,3.22,1.54,2.15]
["Sep",30,1.89,112.84,10,1.8,3.26,null,null,null,"Sep",1.1499999999999999,2.1800000000000002,1.1399999999999999,1.64]
["Oct",30,1.93,26.68,10,1.91,3.97,null,null,null,"Oct",1.43,3.32,1.43,2.04]
["Nov",30,1.83,11.05,10,1.8,5.43,null,null,null,"Nov",2.4,6.52,2.41,3.75]
["Dec",30,2.64,13.06,10,2.65,6.32,null,null,null,"Dec",3.7,13.06,3.7,6.32]
[null,null,null,null,null,null,null,null,null,null,"Annual",{"$f":"AVERAGE(L7:L18)","v":1.4158333333333335},{"$f":"MAX(M7:M18)","v":13.06},{"$f":"AVERAGE(N7:N18)","v":1.4175000000000002},{"$f":"MAX(O7:O18)","v":6.32}]
[]
[null,null,null,null,null,null,null,null,null,{"$f":"+A6","v":2022},"mg/Nm3","Monthly 1/2 hourly mean","Monthly 1/2 hourly maximum","Monthly daily mean","Monthly daily maximum"]
[null,null,null,null,null,null,null,null,null,"A2","Jan",0.55000000000000004,1.87,0.55000000000000004,0.62]
[null,null,null,null,null,null,null,null,null,null,"Feb",0.72,7.84,0.74,2.42]
[null,null,null,null,null,null,null,null,null,null,"Mar",0.86,11.38,0.86,2.34]
[null,null,null,null,null,null,null,null,null,null,"Apr",1.37,8,1.17,3.83]
[null,null,null,null,null,null,null,null,null,null,"May",0.38,1.1399999999999999,0.37,0.48]
[null,null,null,null,null,null,null,null,null,null,"Jun",0.4,0.69,0.4,0.45]
[null,null,null,null,null,null,null,null,null,null,"Jul",0.47,1.88,0.47,1.21]
[null,null,null,null,null,null,null,null,null,null,"Aug",1.0900000000000001,6.39,1.08,3.38]
[null,null,null,null,null,null,null,null,null,null,"Sep"]
[null,null,null,null,null,null,null,null,null,null,"Oct",1.01,26.68,0.81,1.01]
[null,null,null,null,null,null,null,null,null,null,"Nov",0.78,2.13,0.78,0.97]
[null,null,null,null,null,null,null,null,null,null,"Dec",0.6,1.63,0.6,0.8]
[null,null,null,null,null,null,null,null,null,null,"Annual",{"$f":"AVERAGE(L22:L33)","v":0.74818181818181817},{"$f":"MAX(M22:M33)","v":26.68},{"$f":"AVERAGE(N22:N33)","v":0.71181818181818179},{"$f":"MAX(O22:O33)","v":3.83}]
[]
[null,null,null,null,null,null,null,null,null,{"$f":"+A6","v":2022},"mg/Nm3","Monthly 1/2 hourly mean","Monthly 1/2 hourly maximum","Monthly daily mean","Monthly daily maximum"]
[null,null,null,null,null,null,null,null,null,"A3","Jan",3.87,9.07,3.88,5.85]
[null,null,null,null,null,null,null,null,null,null,"Feb",4.9400000000000004,11.87,4.9400000000000004,7.23]
[null,null,null,null,null,null,null,null,null,null,"Mar",2.79,11,2.92,6.88]
[null,null,null,null,null,null,null,null,null,null,"Apr",1.65,3.43,1.65,2.34]
[null,null,null,null,null,null,null,null,null,null,"May",3.16,15.4,3.16,5.34]
[null,null,null,null,null,null,null,null,null,null,"Jun",3.23,10.87,3.24,4.75]
[null,null,null,null,null,null,null,null,null,null,"Jul",0.59,4.32,0.59,0.76]
[null,null,null,null,null,null,null,null,null,null,"Aug",1.36,3.28,1.36,2.19]
[null,null,null,null,null,null,null,null,null,null,"Sep",2.65,112.84,2.4700000000000002,3.26]
[null,null,null,null,null,null,null,null,null,null,"Oct",2.88,7.09,2.88,3.97]
[null,null,null,null,null,null,null,null,null,null,"Nov",2.6,11.05,2.64,5.43]
["Comments :",null,null,null,null,null,null,null,null,null,"Dec",3.64,8.24,3.64,5.7]
["Taken from monthly report emailed to G Bains, site officer - • The FGT by-pass damper opened due to a fault on the 3rd, this has been reported as an abnormal operation. There were two half-hour periods which exceeded the ELV for dust, however these come under the period of abnormal operation and are therefore, not reportable as breaches of our ELV.",null,null,null,null,null,null,null,null,null,"Annual",{"$f":"AVERAGE(L37:L48)","v":2.78},{"$f":"MAX(M37:M48)","v":112.84},{"$f":"AVERAGE(N37:N48)","v":2.7808333333333333},{"$f":"MAX(O37:O48)","v":7.23}]
[]
[null,null,null,null,null,null,null,null,null,{"$f":"+A6","v":2022},"mg/Nm3","Monthly 1/2 hourly mean","Monthly 1/2 hourly maximum","Monthly daily mean","Monthly daily maximum"]
[null,null,null,null,null,null,null,null,null,"A4","Jan"]
[null,null,null,null,null,null,null,null,null,null,"Feb"]
[null,null,null,null,null,null,null,null,null,null,"Mar"]
[null,null,null,null,null,null,null,null,null,null,"Apr"]
[null,null,null,null,null,null,null,null,null,null,"May"]
[null,null,null,null,null,null,null,null,null,null,"Jun"]
[null,null,null,null,null,null,null,null,null,null,"Jul"]
[null,null,null,null,null,null,null,null,null,null,"Aug"]
[null,null,null,null,null,null,null,null,null,null,"Sep"]
[null,null,null,null,null,null,null,null,null,null,"Oct"]
[null,null,null,null,null,null,null,null,null,null,"Nov"]
[null,null,null,null,null,null,null,null,null,null,"Dec"]
[null,null,null,null,null,null,null,null,null,null,"Annual",{"$f":"AVERAGE(L52:L63)","v":{"$error":"#DIV/0!"}},{"$f":"MAX(M52:M63)","v":0},{"$f":"AVERAGE(N52:N63)","v":{"$error":"#DIV/0!"}},{"$f":"MAX(O52:O63)","v":0}]
[]
[null,null,null,null,null,null,null,null,null,{"$f":"+A6","v":2022},"mg/Nm3","Monthly 1/2 hourly mean","Monthly 1/2 hourly maximum","Monthly daily mean","Monthly daily maximum"]
[null,null,null,null,null,null,null,null,null,"A5","Jan"]
[null,null,null,null,null,null,null,null,null,null,"Feb"]
[null,null,null,null,null,null,null,null,null,null,"Mar"]
[null,null,null,null,null,null,null,null,null,null,"Apr"]
[null,null,null,null,null,null,null,null,null,null,"May"]
[null,null,null,null,null,null,null,null,null,null,"Jun"]
[null,null,null,null,null,null,null,null,null,null,"Jul"]
[null,null,null,null,null,null,null,null,null,null,"Aug"]
[null,null,null,null,null,null,null,null,null,null,"Sep"]
[null,null,null,null,null,null,null,null,null,null,"Oct"]
[null,null,null,null,null,null,null,null,null,null,"Nov"]
[null,null,null,null,null,null,null,null,null,null,"Dec"]
[null,null,null,null,null,null,null,null,null,null,"Annual",{"$f":"AVERAGE(L67:L78)","v":{"$error":"#DIV/0!"}},{"$f":"MAX(M67:M78)","v":0},{"$f":"AVERAGE(N67:N78)","v":{"$error":"#DIV/0!"}},{"$f":"MAX(O67:O78)","v":0}]

{"sheet":"CO 0.5hourly","index":20,"n_rows":79,"n_cols":17,"rows_kept":79,"cut":false,"hidden":false,"merged":[[3,16,7,18],[9,16,11,18],[12,16,15,18],[66,9,78,9],[4,1,4,3],[4,4,4,6],[4,9,4,14],[6,9,18,9],[21,9,33,9],[36,9,48,9],[47,0,47,6],[48,0,51,6],[51,9,63,9]]}
[{"$f":"+'Cover Page'!$B$29","v":"Annual Performance Report 2022"},null,null,null,{"$f":"+'Cover Page'!$B$33","v":"The Coventry and Solihull Waste Disposal Company Limited"}]
[]
["Monitoring of Carbon Monoxide (half hourly)",null,null,"Whole Installation",null,null,"See  Notes in Cell Q3",null,null,{"$f":"+A3","v":"Monitoring of Carbon Monoxide (half hourly)"},null,null,null,"Per Combustion Line",null,null,"Notes:"]
[null,null,null,null,null,null,null,null,null,null,null,null,null,null,null,null,"User to add logic to complete Whole installation, Table A5:G18. From the data in Per Combustion Line, Table J6:O79, subject to No. of lines installed"]
["mg/Nm3","1/2 Hourly Reference Periods",null,null,"Daily Reference Periods"]
[{"$f":"+'Cover Page'!C39","v":2022},"1/2 hourly CO ELV","Monthly 1/2 hourly mean","Highest 1/2 hourly maximum","Daily CO ELV","Monthly daily mean","Highest daily maximum",null,null,{"$f":"+A6","v":2022},"mg/Nm3","Monthly 1/2 hourly mean","Monthly 1/2 hourly maximum","Monthly daily mean","Monthly daily maximum"]
["Jan",100,null,null,50,null,null,null,null,"A1","Jan"]
["Feb",{"$f":"+B7","v":100},null,null,{"$f":"+E7","v":50},null,null,null,null,null,"Feb"]
["Mar",{"$f":"+B8","v":100},null,null,{"$f":"+E8","v":50},null,null,null,null,null,"Mar",null,null,null,null,null,"Whole Installation table A5:G18:"]
["Apr",100,null,null,50,null,null,null,null,null,"Apr",null,null,null,null,null,"Mean: for 1/2 hourly and daily periods calculate mean of values across all operational combustion lines for the month"]
["May",100,null,null,50,null,null,null,null,null,"May"]
["Jun",100,null,null,50,null,null,null,null,null,"Jun"]
["Jul",100,null,null,50,null,null,null,null,null,"Jul",null,null,null,null,null,"Maximum: for 1/2 hourly and daily periods use the highest value across all operational combustion lines for the month"]
["Aug",100,null,null,50,null,null,null,null,null,"Aug"]
["Sep",100,null,null,50,null,null,null,null,null,"Sep"]
["Oct",100,null,null,50,null,null,null,null,null,"Oct"]
["Nov",100,null,null,50,null,null,null,null,null,"Nov"]
["Dec",100,null,null,50,null,null,null,null,null,"Dec"]
[null,null,null,null,null,null,null,null,null,null,"Annual",{"$f":"AVERAGE(L7:L18)","v":{"$error":"#DIV/0!"}},{"$f":"MAX(M7:M18)","v":0},{"$f":"AVERAGE(N7:N18)","v":{"$error":"#DIV/0!"}},{"$f":"MAX(O7:O18)","v":0}]
[]
[null,null,null,null,null,null,null,null,null,{"$f":"+A6","v":2022},"mg/Nm3","Monthly 1/2 hourly mean","Monthly 1/2 hourly maximum","Monthly daily mean","Monthly daily maximum"]
[null,null,null,null,null,null,null,null,null,"A2","Jan"]
[null,null,null,null,null,null,null,null,null,null,"Feb"]
[null,null,null,null,null,null,null,null,null,null,"Mar"]
[null,null,null,null,null,null,null,null,null,null,"Apr"]
[null,null,null,null,null,null,null,null,null,null,"May"]
[null,null,null,null,null,null,null,null,null,null,"Jun"]
[null,null,null,null,null,null,null,null,null,null,"Jul"]
[null,null,null,null,null,null,null,null,null,null,"Aug"]
[null,null,null,null,null,null,null,null,null,null,"Sep"]
[null,null,null,null,null,null,null,null,null,null,"Oct"]
[null,null,null,null,null,null,null,null,null,null,"Nov"]
[null,null,null,null,null,null,null,null,null,null,"Dec"]
[null,null,null,null,null,null,null,null,null,null,"Annual",{"$f":"AVERAGE(L22:L33)","v":{"$error":"#DIV/0!"}},{"$f":"MAX(M22:M33)","v":0},{"$f":"AVERAGE(N22:N33)","v":{"$error":"#DIV/0!"}},{"$f":"MAX(O22:O33)","v":0}]
[]
[null,null,null,null,null,null,null,null,null,{"$f":"+A6","v":2022},"mg/Nm3","Monthly 1/2 hourly mean","Monthly 1/2 hourly maximum","Monthly daily mean","Monthly daily maximum"]
[null,null,null,null,null,null,null,null,null,"A3","Jan"]
[null,null,null,null,null,null,null,null,null,null,"Feb"]
[null,null,null,null,null,null,null,null,null,null,"Mar"]
[null,null,null,null,null,null,null,null,null,null,"Apr"]
[null,null,null,null,null,null,null,null,null,null,"May"]
[null,null,null,null,null,null,null,null,null,null,"Jun"]
[null,null,null,null,null,null,null,null,null,null,"Jul"]
[null,null,null,null,null,null,null,null,null,null,"Aug"]
[null,null,null,null,null,null,null,null,null,null,"Sep"]
[null,null,null,null,null,null,null,null,null,null,"Oct"]
[null,null,null,null,null,null,null,null,null,null,"Nov"]
["Comments :",null,null,null,null,null,null,null,null,null,"Dec"]
[null,null,null,null,null,null,null,null,null,null,"Annual",{"$f":"AVERAGE(L37:L48)","v":{"$error":"#DIV/0!"}},{"$f":"MAX(M37:M48)","v":0},{"$f":"AVERAGE(N37:N48)","v":{"$error":"#DIV/0!"}},{"$f":"MAX(O37:O48)","v":0}]
[]
[null,null,null,null,null,null,null,null,null,{"$f":"+A6","v":2022},"mg/Nm3","Monthly 1/2 hourly mean","Monthly 1/2 hourly maximum","Monthly daily mean","Monthly daily maximum"]
[null,null,null,null,null,null,null,null,null,"A4","Jan"]
[null,null,null,null,null,null,null,null,null,null,"Feb"]
[null,null,null,null,null,null,null,null,null,null,"Mar"]
[null,null,null,null,null,null,null,null,null,null,"Apr"]
[null,null,null,null,null,null,null,null,null,null,"May"]
[null,null,null,null,null,null,null,null,null,null,"Jun"]
[null,null,null,null,null,null,null,null,null,null,"Jul"]
[null,null,null,null,null,null,null,null,null,null,"Aug"]
[null,null,null,null,null,null,null,null,null,null,"Sep"]
[null,null,null,null,null,null,null,null,null,null,"Oct"]
[null,null,null,null,null,null,null,null,null,null,"Nov"]
[null,null,null,null,null,null,null,null,null,null,"Dec"]
[null,null,null,null,null,null,null,null,null,null,"Annual",{"$f":"AVERAGE(L52:L63)","v":{"$error":"#DIV/0!"}},{"$f":"MAX(M52:M63)","v":0},{"$f":"AVERAGE(N52:N63)","v":{"$error":"#DIV/0!"}},{"$f":"MAX(O52:O63)","v":0}]
[]
[null,null,null,null,null,null,null,null,null,{"$f":"+A6","v":2022},"mg/Nm3","Monthly 1/2 hourly mean","Monthly 1/2 hourly maximum","Monthly daily mean","Monthly daily maximum"]
[null,null,null,null,null,null,null,null,null,"A5","Jan"]
[null,null,null,null,null,null,null,null,null,null,"Feb"]
[null,null,null,null,null,null,null,null,null,null,"Mar"]
[null,null,null,null,null,null,null,null,null,null,"Apr"]
[null,null,null,null,null,null,null,null,null,null,"May"]
[null,null,null,null,null,null,null,null,null,null,"Jun"]
[null,null,null,null,null,null,null,null,null,null,"Jul"]
[null,null,null,null,null,null,null,null,null,null,"Aug"]
[null,null,null,null,null,null,null,null,null,null,"Sep"]
[null,null,null,null,null,null,null,null,null,null,"Oct"]
[null,null,null,null,null,null,null,null,null,null,"Nov"]
[null,null,null,null,null,null,null,null,null,null,"Dec"]
[null,null,null,null,null,null,null,null,null,null,"Annual",{"$f":"AVERAGE(L67:L78)","v":{"$error":"#DIV/0!"}},{"$f":"MAX(M67:M78)","v":0},{"$f":"AVERAGE(N67:N78)","v":{"$error":"#DIV/0!"}},{"$f":"MAX(O67:O78)","v":0}]

{"sheet":"CO 95% 10 min","index":21,"n_rows":79,"n_cols":19,"rows_kept":79,"cut":false,"hidden":false,"merged":[[3,18,7,20],[9,18,11,20],[12,18,15,20],[66,10,78,10],[4,1,4,4],[4,5,4,7],[4,10,4,16],[6,10,18,10],[21,10,33,10],[36,10,48,10],[47,0,47,7],[48,0,51,7],[51,10,63,10]]}
[{"$f":"+'Cover Page'!$B$29","v":"Annual Performance Report 2022"},null,null,null,{"$f":"+'Cover Page'!$B$33","v":"The Coventry and Solihull Waste Disposal Company Limited"}]
[]
["Monitoring of Carbon Monoxide (10-minute avg)",null,null,null,"Whole Installation",null,null,"See  Notes in Cell S3",null,{"$f":"+A3","v":"Monitoring of Carbon Monoxide (10-minute avg)"},null,null,null,null,"Per Combustion Line",null,"Notes:",null,"Notes:"]
[null,null,null,null,null,null,null,null,null,null,null,null,null,null,null,null,null,null,"User to add logic to complete Whole installation, Table A5:H18. From the data in Per Combustion Line, Table K6:Q79, subject to No. of lines installed"]
["mg/Nm3","10-minute Reference Periods",null,null,null,"Daily Reference Periods"]
[{"$f":"+'Cover Page'!C39","v":2022},"95%ile 10-min avg CO ELV","95%ile 10-min avg maximum","Monthly CO 10-min avg mean","10-min avg maximum","Daily CO ELV","Monthly daily mean","Highest daily maximum",null,null,{"$f":"+A6","v":2022},"mg/Nm3","95%ile 10-min avg maximum","Monthly CO 10-min avg mean","10-min avg maximum","Monthly daily mean","Monthly daily maximum"]
["Jan",150,67.92,30.02,519.72,50,29.88,48.39,null,null,"A1","Jan",67.92,34.659999999999997,407.13,34.61,48.39]
["Feb",{"$f":"+B7","v":150},129.62,31.27,479.96,{"$f":"+F7","v":50},31.18,47.58,null,null,null,"Feb",129.62,33.94,479.96,33.619999999999997,36.69]
["Mar",{"$f":"+B8","v":150},79.03,29.54,1884.28,{"$f":"+F8","v":50},29.3,47.18,null,null,null,"Mar",57.98,32.369999999999997,671.13,32.42,39.049999999999997,null,"Whole Installation table A5:H18:"]
["Apr",150,68.260000000000005,29.23,403.39,50,29.35,45.86,null,null,null,"Apr",52.76,29.09,243.18,29.09,36.15,null,"Mean: for 10-min and daily periods use average of all operational combustion lines."]
["May",150,80.75,25.84,466.39,50,26.04,46.61,null,null,null,"May",39.49,20.28,334.87,20.2,28.77]
["Jun",150,87.43,26.99,866.51,50,26.91,45.37,null,null,null,"Jun",40.159999999999997,19.93,248.45,19.93,25.73]
["Jul",150,73.400000000000006,21.4,380.49,50,21.4,34.29,null,null,null,"Jul",48.25,18.18,365.98,17.899999999999999,23.01,null,"Maximum: for 10-min and daily periods use the highest of all operational combustion lines in any month."]
["Aug",150,75.53,25.05,392.9,50,25.19,39.369999999999997,null,null,null,"Aug",74.290000000000006,21.04,354.41,21.2,31.03]
["Sep",150,99.52,29.21,901.53,50,29.41,47.99,null,null,null,"Sep",75.84,25.18,261.54000000000002,25.36,39.42]
["Oct",150,74.599999999999994,27.41,587,50,27.45,42.09,null,null,null,"Oct",65.73,26.2,280.57,26.17,34.51]
["Nov",150,82.85,34.35,393.23,50,34.89,47.37,null,null,null,"Nov",82.85,37.47,319.29000000000002,38.04,46.3]
["Dec",150,90.86,28,559.16999999999996,50,28.02,47.33,null,null,null,"Dec",90.86,33.18,552.01,33.21,47.33]
[null,null,null,null,null,null,null,null,null,null,null,"Annual",{"$f":"AVERAGE(M7:M18)","v":68.812500000000014},{"$f":"AVERAGE(N7:N18)","v":27.626666666666669},{"$f":"MAX(O7:O18)","v":671.13},{"$f":"AVERAGE(P7:P18)","v":27.645833333333332},{"$f":"MAX(Q7:Q18)","v":48.39}]
[]
[null,null,null,null,null,null,null,null,null,null,{"$f":"+A6","v":2022},"mg/Nm3","95%ile 10-min avg maximum","Monthly CO 10-min avg mean","10-min avg maximum","Monthly daily mean","Monthly daily maximum"]
[null,null,null,null,null,null,null,null,null,null,"A2","Jan",56.64,24.22,243.91,24.3,32.17]
[null,null,null,null,null,null,null,null,null,null,null,"Feb",58.72,21.17,303.77999999999997,20.98,26.31]
[null,null,null,null,null,null,null,null,null,null,null,"Mar",46.63,19.82,416.3,19.82,24.97]
[null,null,null,null,null,null,null,null,null,null,null,"Apr",51.18,22.56,323.63,22.06,27.76]
[null,null,null,null,null,null,null,null,null,null,null,"May",55.89,19.45,349.76,19.510000000000002,27.13]
[null,null,null,null,null,null,null,null,null,null,null,"Jun",87.43,28.64,447.13,28.64,45.37]
[null,null,null,null,null,null,null,null,null,null,null,"Jul",67.099999999999994,24.25,259.67,24.33,34.29]
[null,null,null,null,null,null,null,null,null,null,null,"Aug",74.89,27.49,273.52,27.71,37.58]
[null,null,null,null,null,null,null,null,null,null,null,"Sep"]
[null,null,null,null,null,null,null,null,null,null,null,"Oct",64.010000000000005,21.73,508.88,21.63,31.09]
[null,null,null,null,null,null,null,null,null,null,null,"Nov",79.38,32.19,393.23,32.47,47.37]
[null,null,null,null,null,null,null,null,null,null,null,"Dec",73.349999999999994,25.77,559.16999999999996,25.79,40.520000000000003]
[null,null,null,null,null,null,null,null,null,null,null,"Annual",{"$f":"AVERAGE(M22:M33)","v":65.02},{"$f":"AVERAGE(N22:N33)","v":24.299090909090911},{"$f":"MAX(O22:O33)","v":559.16999999999996},{"$f":"AVERAGE(P22:P33)","v":24.294545454545457},{"$f":"MAX(Q22:Q33)","v":47.37}]
[]
[null,null,null,null,null,null,null,null,null,null,{"$f":"+A6","v":2022},"mg/Nm3","95%ile 10-min avg maximum","Monthly CO 10-min avg mean","10-min avg maximum","Monthly daily mean","Monthly daily maximum"]
[null,null,null,null,null,null,null,null,null,null,"A3","Jan",61.91,31.65,519.72,31.45,41.89]
[null,null,null,null,null,null,null,null,null,null,null,"Feb",71.2,35.18,229.32,35.17,47.58]
[null,null,null,null,null,null,null,null,null,null,null,"Mar",79.03,37.07,1884.28,37.01,47.18]
[null,null,null,null,null,null,null,null,null,null,null,"Apr",68.260000000000005,35.44,403.39,35.450000000000003,45.86]
[null,null,null,null,null,null,null,null,null,null,null,"May",80.75,35.68,466.39,35.68,46.61]
[null,null,null,null,null,null,null,null,null,null,null,"Jun",83.92,32.909999999999997,866.51,32.74,44.97]
[null,null,null,null,null,null,null,null,null,null,null,"Jul",73.400000000000006,21.65,380.49,21.51,29.58]
[null,null,null,null,null,null,null,null,null,null,null,"Aug",75.53,26.47,392.9,26.47,39.369999999999997]
[null,null,null,null,null,null,null,null,null,null,null,"Sep",99.52,33.369999999999997,901.53,33.619999999999997,47.99]
[null,null,null,null,null,null,null,null,null,null,null,"Oct",74.599999999999994,31.44,587,31.26,42.09]
[null,null,null,null,null,null,null,null,null,null,null,"Nov",76.959999999999994,33.14,331.9,34.21,44.13]
["Comments :",null,null,null,null,null,null,null,null,null,null,"Dec",74.459999999999994,25.08,292.14999999999998,25.05,35.659999999999997]
["Environment Agency explanatory note: The 10-minute average ELV is based on the “95th percentile”. In this case this means that 95% of the 10 minute averages in the relevant 24-hour period (i.e. 137) must be below 150 mg/Nm3, and 5% (i.e. 7) are allowed to be any value above 150 mg/Nm3. Whilst we expect operators to minimise CO emissions at all times, it is perfectly acceptable for the value of the maximum 10-minute average to be above 150 mg/Nm3, provided the 95th percentile ELV has been met for that period. ",null,null,null,null,null,null,null,null,null,null,"Annual",{"$f":"AVERAGE(M37:M48)","v":76.628333333333345},{"$f":"AVERAGE(N37:N48)","v":31.59},{"$f":"MAX(O37:O48)","v":1884.28},{"$f":"AVERAGE(P37:P48)","v":31.634999999999994},{"$f":"MAX(Q37:Q48)","v":47.99}]
[]
[null,null,null,null,null,null,null,null,null,null,{"$f":"+A6","v":2022},"mg/Nm3","95%ile 10-min avg maximum","Monthly CO 10-min avg mean","10-min avg maximum","Monthly daily mean","Monthly daily maximum"]
[null,null,null,null,null,null,null,null,null,null,"A4","Jan"]
[null,null,null,null,null,null,null,null,null,null,null,"Feb"]
[null,null,null,null,null,null,null,null,null,null,null,"Mar"]
[null,null,null,null,null,null,null,null,null,null,null,"Apr"]
[null,null,null,null,null,null,null,null,null,null,null,"May"]
[null,null,null,null,null,null,null,null,null,null,null,"Jun"]
[null,null,null,null,null,null,null,null,null,null,null,"Jul"]
[null,null,null,null,null,null,null,null,null,null,null,"Aug"]
[null,null,null,null,null,null,null,null,null,null,null,"Sep"]
[null,null,null,null,null,null,null,null,null,null,null,"Oct"]
[null,null,null,null,null,null,null,null,null,null,null,"Nov"]
[null,null,null,null,null,null,null,null,null,null,null,"Dec"]
[null,null,null,null,null,null,null,null,null,null,null,"Annual",{"$f":"AVERAGE(M52:M63)","v":{"$error":"#DIV/0!"}},null,{"$f":"MAX(O52:O63)","v":0},{"$f":"AVERAGE(P52:P63)","v":{"$error":"#DIV/0!"}},{"$f":"MAX(Q52:Q63)","v":0}]
[]
[null,null,null,null,null,null,null,null,null,null,{"$f":"+A6","v":2022},"mg/Nm3","95%ile 10-min avg maximum","Monthly CO 10-min avg mean","10-min avg maximum","Monthly daily mean","Monthly daily maximum"]
[null,null,null,null,null,null,null,null,null,null,"A5","Jan"]
[null,null,null,null,null,null,null,null,null,null,null,"Feb"]
[null,null,null,null,null,null,null,null,null,null,null,"Mar"]
[null,null,null,null,null,null,null,null,null,null,null,"Apr"]
[null,null,null,null,null,null,null,null,null,null,null,"May"]
[null,null,null,null,null,null,null,null,null,null,null,"Jun"]
[null,null,null,null,null,null,null,null,null,null,null,"Jul"]
[null,null,null,null,null,null,null,null,null,null,null,"Aug"]
[null,null,null,null,null,null,null,null,null,null,null,"Sep"]
[null,null,null,null,null,null,null,null,null,null,null,"Oct"]
[null,null,null,null,null,null,null,null,null,null,null,"Nov"]
[null,null,null,null,null,null,null,null,null,null,null,"Dec"]
[null,null,null,null,null,null,null,null,null,null,null,"Annual",{"$f":"AVERAGE(M67:M78)","v":{"$error":"#DIV/0!"}},null,{"$f":"MAX(O67:O78)","v":0},{"$f":"AVERAGE(P67:P78)","v":{"$error":"#DIV/0!"}},{"$f":"MAX(Q67:Q78)","v":0}]

{"sheet":"NH3","index":22,"n_rows":79,"n_cols":17,"rows_kept":79,"cut":false,"hidden":false,"merged":[[3,16,7,18],[9,16,11,18],[12,16,15,18],[66,9,78,9],[4,1,4,3],[4,4,4,6],[4,9,4,14],[6,9,18,9],[21,9,33,9],[36,9,48,9],[47,0,47,6],[48,0,51,6],[51,9,63,9]]}
[{"$f":"+'Cover Page'!$B$29","v":"Annual Performance Report 2022"},null,null,null,{"$f":"+'Cover Page'!$B$33","v":"The Coventry and Solihull Waste Disposal Company Limited"}]
[]
["Monitoring of Ammnonia emissions ",null,null,"Whole Installation",null,null,"See  Notes in Cell Q3",null,null,{"$f":"+A3","v":"Monitoring of Ammnonia emissions "},null,null,null,"Per Combustion Line",null,null,"Notes:"]
[null,null,null,null,null,null,null,null,null,null,null,null,null,null,null,null,"User to add logic to complete Whole installation, Table A5:G18. From the data in Per Combustion Line, Table J6:O79, subject to No. of lines installed"]
["mg/Nm3","1/2 Hourly Reference Periods",null,null,"Daily Reference Periods"]
[{"$f":"+'Cover Page'!C39","v":2022},"1/2 hourly NH3 ELV","Monthly 1/2 hourly mean","Highest 1/2 hourly maximum","Daily NH3 ELV","Monthly daily mean","Highest daily maximum",null,null,{"$f":"+A6","v":2022},"mg/Nm3","Monthly 1/2 hourly mean","Monthly 1/2 hourly maximum","Monthly daily mean","Monthly daily maximum"]
["Jan",0,7.83,33.46,0,7.87,13.88,null,null,"A1","Jan",9.91,33.46,10.11,13.88]
["Feb",{"$f":"+B7","v":0},11.17,62.51,0,11.24,29.92,null,null,null,"Feb",11.2,26.42,11.36,14.08]
["Mar",{"$f":"+B8","v":0},11.96,34.93,{"$f":"+E8","v":0},11.86,19.84,null,null,null,"Mar",11.38,28.21,11.46,14.99,null,"Whole Installation table A5:G18:"]
["Apr",0,12.46,36.81,0,12.6,22.92,null,null,null,"Apr",10.19,30.48,10.19,13.87,null,"Mean: for 1/2 hourly and daily periods calculate mean of values across all operational combustion lines for the month"]
["May",0,11.64,32.58,0,11.75,22.17,null,null,null,"May",7.45,19.420000000000002,7.46,10.45]
["Jun",0,10.53,42.53,0,10.48,27.97,null,null,null,"Jun",4.99,16.829999999999998,4.99,7.91]
["Jul",0,13.37,68.97,0,13.34,34.119999999999997,null,null,null,"Jul",11.89,48.6,11.86,19.920000000000002,null,"Maximum: for 1/2 hourly and daily periods use the highest value across all operational combustion lines for the month"]
["Aug",0,16.739999999999998,61.47,0,16.850000000000001,39.06,null,null,null,"Aug",19.05,49.54,19.16,24.03]
["Sep",0,24.7,68.61,0,24.95,40.11,null,null,null,"Sep",16.93,53.93,16.940000000000001,26.99]
["Oct",0,19.61,58.24,0,19.64,32.89,null,null,null,"Oct",16.32,47.12,16.32,21.78]
["Nov",0,21.99,59.98,0,22.17,32.78,null,null,null,"Nov",17.3,53.48,17.61,23.96]
["Dec",0,18.170000000000002,47.77,0,18.170000000000002,28.33,null,null,null,"Dec",14.68,45.84,14.69,19.91]
[null,null,null,null,null,null,null,null,null,null,"Annual",{"$f":"AVERAGE(L7:L18)","v":12.607500000000002},{"$f":"MAX(M7:M18)","v":53.93},{"$f":"AVERAGE(N7:N18)","v":12.679166666666665},{"$f":"MAX(O7:O18)","v":26.99}]
[]
[null,null,null,null,null,null,null,null,null,{"$f":"+A6","v":2022},"mg/Nm3","Monthly 1/2 hourly mean","Monthly 1/2 hourly maximum","Monthly daily mean","Monthly daily maximum"]
[null,null,null,null,null,null,null,null,null,"A2","Jan",8.16,17.61,8.19,11.85]
[null,null,null,null,null,null,null,null,null,null,"Feb",10.74,27.02,10.78,15.89]
[null,null,null,null,null,null,null,null,null,null,"Mar",9.09,17.7,9.09,12.74]
[null,null,null,null,null,null,null,null,null,null,"Apr",8.14,25.9,8.01,12.73]
[null,null,null,null,null,null,null,null,null,null,"May",8.9700000000000006,20.32,9,14.24]
[null,null,null,null,null,null,null,null,null,null,"Jun",9.39,19.53,9.39,13.58]
[null,null,null,null,null,null,null,null,null,null,"Jul",4.45,16.84,4.4800000000000004,8.25]
[null,null,null,null,null,null,null,null,null,null,"Aug",3.89,15.49,3.87,7.09]
[null,null,null,null,null,null,null,null,null,null,"Sep"]
[null,null,null,null,null,null,null,null,null,null,"Oct",22.9,58.24,23.24,28.92]
[null,null,null,null,null,null,null,null,null,null,"Nov",26.17,59.98,26.18,32.78]
[null,null,null,null,null,null,null,null,null,null,"Dec",19.760000000000002,47.77,19.77,28.33]
[null,null,null,null,null,null,null,null,null,null,"Annual",{"$f":"AVERAGE(L22:L33)","v":11.969090909090909},{"$f":"MAX(M22:M33)","v":59.98},{"$f":"AVERAGE(N22:N33)","v":12},{"$f":"MAX(O22:O33)","v":32.78}]
[]
[null,null,null,null,null,null,null,null,null,{"$f":"+A6","v":2022},"mg/Nm3","Monthly 1/2 hourly mean","Monthly 1/2 hourly maximum","Monthly daily mean","Monthly daily maximum"]
[null,null,null,null,null,null,null,null,null,"A3","Jan",5.59,17.54,5.53,8.4499999999999993]
[null,null,null,null,null,null,null,null,null,null,"Feb",11.41,62.51,11.4,29.92]
[null,null,null,null,null,null,null,null,null,null,"Mar",15.69,34.93,15.63,19.84]
[null,null,null,null,null,null,null,null,null,null,"Apr",18.68,36.81,18.68,22.92]
[null,null,null,null,null,null,null,null,null,null,"May",17.04,32.58,17.04,22.17]
[null,null,null,null,null,null,null,null,null,null,"Jun",17.829999999999998,42.53,17.8,27.97]
[null,null,null,null,null,null,null,null,null,null,"Jul",25.96,68.97,26.03,34.119999999999997]
[null,null,null,null,null,null,null,null,null,null,"Aug",27.24,61.47,27.24,39.06]
[null,null,null,null,null,null,null,null,null,null,"Sep",32.700000000000003,68.61,33.270000000000003,40.11]
[null,null,null,null,null,null,null,null,null,null,"Oct",21.26,53.52,21.4,32.89]
[null,null,null,null,null,null,null,null,null,null,"Nov",22.39,50.7,22.6,27.43]
["Comments :",null,null,null,null,null,null,null,null,null,"Dec",20.059999999999999,47.21,20.05,25.63]
["An indicated ELV value of zero in the table above means that no ammonia limit is set in the permit.  ",null,null,null,null,null,null,null,null,null,"Annual",{"$f":"AVERAGE(L37:L48)","v":19.654166666666665},{"$f":"MAX(M37:M48)","v":68.97},{"$f":"AVERAGE(N37:N48)","v":19.7225},{"$f":"MAX(O37:O48)","v":40.11}]
[]
[null,null,null,null,null,null,null,null,null,{"$f":"+A6","v":2022},"mg/Nm3","Monthly 1/2 hourly mean","Monthly 1/2 hourly maximum","Monthly daily mean","Monthly daily maximum"]
[null,null,null,null,null,null,null,null,null,"A4","Jan"]
[null,null,null,null,null,null,null,null,null,null,"Feb"]
[null,null,null,null,null,null,null,null,null,null,"Mar"]
[null,null,null,null,null,null,null,null,null,null,"Apr"]
[null,null,null,null,null,null,null,null,null,null,"May"]
[null,null,null,null,null,null,null,null,null,null,"Jun"]
[null,null,null,null,null,null,null,null,null,null,"Jul"]
[null,null,null,null,null,null,null,null,null,null,"Aug"]
[null,null,null,null,null,null,null,null,null,null,"Sep"]
[null,null,null,null,null,null,null,null,null,null,"Oct"]
[null,null,null,null,null,null,null,null,null,null,"Nov"]
[null,null,null,null,null,null,null,null,null,null,"Dec"]
[null,null,null,null,null,null,null,null,null,null,"Annual",{"$f":"AVERAGE(L52:L63)","v":{"$error":"#DIV/0!"}},{"$f":"MAX(M52:M63)","v":0},{"$f":"AVERAGE(N52:N63)","v":{"$error":"#DIV/0!"}},{"$f":"MAX(O52:O63)","v":0}]
[]
[null,null,null,null,null,null,null,null,null,{"$f":"+A6","v":2022},"mg/Nm3","Monthly 1/2 hourly mean","Monthly 1/2 hourly maximum","Monthly daily mean","Monthly daily maximum"]
[null,null,null,null,null,null,null,null,null,"A5","Jan"]
[null,null,null,null,null,null,null,null,null,null,"Feb"]
[null,null,null,null,null,null,null,null,null,null,"Mar"]
[null,null,null,null,null,null,null,null,null,null,"Apr"]
[null,null,null,null,null,null,null,null,null,null,"May"]
[null,null,null,null,null,null,null,null,null,null,"Jun"]
[null,null,null,null,null,null,null,null,null,null,"Jul"]
[null,null,null,null,null,null,null,null,null,null,"Aug"]
[null,null,null,null,null,null,null,null,null,null,"Sep"]
[null,null,null,null,null,null,null,null,null,null,"Oct"]
[null,null,null,null,null,null,null,null,null,null,"Nov"]
[null,null,null,null,null,null,null,null,null,null,"Dec"]
[null,null,null,null,null,null,null,null,null,null,"Annual",{"$f":"AVERAGE(L67:L78)","v":{"$error":"#DIV/0!"}},{"$f":"MAX(M67:M78)","v":0},{"$f":"AVERAGE(N67:N78)","v":{"$error":"#DIV/0!"}},{"$f":"MAX(O67:O78)","v":0}]